{"text_format":"1","workbook":"xlsx","n_sheets":20,"sheets":["Petunjuk","List","I","II","III","IV.1","IV.2.1","IV.2.2","IV.3","IV.4","IV.5","IV.6","V.Penerimaan","VI.Pengeluaran","Lampiran1-Penjualan-Pelepasan","Lampiran2-Fasilitas","Lampiran3-SKM","Lampiran4-SKB","Lembar Penyerahan","DATA"],"not_rendered":{"charts":0,"images":2,"macros":1,"external_links":0,"defined_names":33,"comments":0,"pivot_tables":0},"unopened":[],"bounds":{"document_bytes":16777216,"sheet_cells":100000,"rows_first":2000,"rows_last":500,"rows_between":2000,"halvings":0,"cell_chars":16384,"cell_head_chars":4096},"cells_cut":0,"cells_raw":0,"read":"whole","date_system":"1900"}

{"sheet":"Petunjuk","index":0,"n_rows":29,"n_cols":5,"rows_kept":29,"cut":false,"hidden":false,"merged":[[24,2,24,12],[5,2,5,12],[28,2,28,12],[21,3,21,12],[22,3,22,12],[23,3,23,12],[18,2,18,12],[19,2,19,12],[20,2,20,12],[9,2,9,12],[10,2,10,12],[17,2,17,12],[7,2,7,12],[8,2,8,12]]}
[]
[]
[]
[]
[]
[null,null,"TATA CARA MELAPORKAN LHKPN DENGAN FORMULIR FORMAT EXCEL"]
[]
[null,1,"Formulir LHKPN dengan format excel dapat diunduh pada website KPK dengan alamat website www.kpk.go.id/id/layanan-publik/lhkpn/formulir-lhkpn atau dapat diminta melalui email yang ditujukan kepada elhkpn@kpk.go.id dengan judul email Permintaan Formulir LHKPN."]
[null,2,"Sebelum melakukan pengisian agar membaca petunjuk teknis pengisian formulir LHKPN yang dapat diunduh pada website KPK dengan alamat www.kpk.go.id/id/layanan-publik/lhkpn/petunjukteknis-lhkpn."]
[null,3,"Lakukan pengisian harta pada formulir LHKPN format excel yang telah diunduh dimulai dari Sheet I (Ringkasan Laporan Harta Kekayaan Penyelenggara Negara) sampai dengan Sheet IV (Hutang)."]
[null,4,"Apabila kolom isian harta tidak mencukupi sehingga memerlukan sheet tambahan, dapat dilakukan copy-sheet pada sheet yang dibutuhkan dengan catatan tidak merubah nama sheet yang telah ada."]
[null,null,"Cara copy sheet :"]
[null,null,null,"a.","Klik kanan sheet yang akan dicopy"]
[null,null,null,"b.","Pilih Move or Copy..."]
[null,null,null,"c.","Pilih sheet setelah sheet yang akan dicopy"]
[null,null,null,"d.","Centang Create a copy"]
[null,null,null,"e.","OK"]
[null,5,"Setelah pengisian harta, penerimaan dan pengeluaran selesai dilakukan, dilanjutkan dengan pengisian lampiran yang terdapat pada sheet lampiran 1 (Informasi Penjualan/Pelepasan Harta dan Penerimaan/Pemberian Hibah dalam Setahun) sampai dengan lampiran 4 (Surat Kuasa)."]
[null,6,"Setelah melakukan pengisian harta dan lampiran-lampiran, simpan file (Save-as) formulir LHKPN tersebut dengan format [Nama]-[NomorIndukKependudukan]-[TahunLapor].xls Contoh: Agus Setiawan-327512345678912-2017.xls Kemudian file softcopy dalam format excel (.xls) tersebut dikirimkan melalui email dengan alamat elhkpn@kpk.go.id dengan judul email Pelaporan LHKPN."]
[null,7,"Khusus untuk sheet lampiran 4 mengenai Surat Kuasa, selain wajib diisi oleh wajib lapor, juga wajib diisi oleh pasangan dan anak yang masih dalam tanggungan. Sheet lampiran 4 tersebut dapat dicopy sesuai dengan kebutuhan."]
[null,8,"Wajib lapor wajib mencetak dan menandatangani secara basah, khusus pada sheet: "]
[null,null,"a.","Sheet I “Ringkasan Laporan Harta Kekayaan Penyelenggara Negara”;"]
[null,null,"b.","Sheet Lampiran 3 “Surat Kuasa Mengumumkan (SKM) bermeterai Rp. 6000,-”;"]
[null,null,"c.","Sheet Lampiran 4 “Surat Kuasa (SKB) bermeterai Rp. 6000,-”, wajib diisi sesuai nama dalam KTP dan ditandatangani masing-masing oleh Penyelenggara Negara, Istri/Suami dan seluruh Anak Dalam Tanggungan. Untuk keperluan tersebut, lembar Surat Kuasa dapat difotokopi atau diperbanyak sesuai kebutuhan (disesuaikan dengan jumlah Istri dan Anak Dalam Tanggungan)."]
[null,9,"Dokumen yang telah dicetak dan ditandatangani sebagaimana point 8 diatas serta dokumen pendukung atas kepemilikan harta pada lembaga keuangan sebagaimana dilaporkan pada sheet IV.3 (Surat Berharga) dan sheet IV.4 (Kas dan Setara Kas) segera dikirimkan melalui pos kepada KPK, dengan alamat:"]
[null,null,null,"Direktorat Pendaftaran dan Pemeriksaan LHKPN"]
[null,null,null,"Komisi Pemberantasan Korupsi"]
[null,null,null,"Jalan Kuningan Persada Kav. 4, Setiabudi, Jakarta 12950"]
[null,10,"Apabila KPK belum menerima dokumen yang dicetak pada point 8 dan dokumen pendukung atas kepemilikan harta pada lembaga keuangan, maka dianggap belum melaporkan LHKPN sampai dengan formulir dan dokumen pendukung yang dimaksud telah diterima oleh KPK."]

{"sheet":"List","index":1,"n_rows":6,"n_cols":3,"rows_kept":6,"cut":false,"hidden":true,"merged":[]}
[]
[null,"NIK",":"]
[null,"Nama",":"]
[null,"Instansi",":"]
[null,"Email",":"]
[null,"HP",":"]

{"sheet":"I","index":2,"n_rows":53,"n_cols":63,"rows_kept":53,"cut":false,"hidden":false,"merged":[[36,20,36,29],[38,20,38,29],[1,1,2,59],[3,8,3,11],[3,14,3,17],[3,20,3,26],[18,17,18,57],[7,28,7,35],[16,17,16,36],[16,38,16,57],[8,53,8,54],[8,26,8,34],[41,3,41,57],[12,47,12,57],[28,48,28,56],[30,48,30,56],[32,48,32,56],[34,48,34,56],[20,2,20,57],[22,48,22,56],[24,48,24,56],[26,48,26,56],[14,17,14,36],[14,38,14,57],[12,22,12,45],[12,17,12,20],[36,48,36,56],[38,48,38,56],[51,56,51,58],[47,47,47,56],[50,3,50,57],[42,4,42,57],[43,4,43,57],[45,46,45,57],[44,52,44,56],[44,46,44,50],[48,47,48,56]]}
[]
[null,"LAPORAN HARTA KEKAYAAN PENYELENGGARA NEGARA"]
[]
[null,null,null,null,null,null,null,null," ",null,null,null,null,null," "]
[null,null,null,"JENIS LAPORAN",null,null,null,null,null,null,null,null,null,null,null,null,":",null,"Laporan Khusus",null,null,null,null,null,null,null,null,null,null,null,null,null,null,null,null,null,null,null,null,null,null,null,null,null,null,null,"Laporan Periodik"]
[]
[null,null,null,null,null,null,null,null,null,null,null,null,null,null,null,null,null,null,null,"Calon Penyelenggara Negara (PN)",null,null,null,null,null,null,null,null,null,null,null,"Awal Menjabat",null,null,null,null,null,null,"Akhir Menjabat",null,null,null,null,null,null,null,null,"Sedang Menjabat",null,null,null,null,null,null,null,null,null,null,null,null,null,4,{"$f":"RIGHT(AU5&BJ7,9)","v":"Periodik4"}]
[null,null,null,null,null,null,null,null,null,null,null,null,null,null,null,null,null,null,null,null,null,null,null,null,null,null,null,null,null,null,null,null,null,null,null,null,null,null,null,null,null,null,null,null,null,null,null,null,null,null,null,null,null,null,null,null,null,null,null,null,null,null,{"$f":"RIGHT(S5&BJ7,7)","v":"Khusus4"}]
[null,null,null,null,null,null,null,null,null,null,null,null,null,null,null,null,null,null,"Tanggal Pelaporan",null,null,null,null,null,null,":",null,null,null,null,null,null,null,null,null,null,null,null,null,null,null,null,null,null,null,null,"Tahun Pelaporan",null,null,null,null,null,":"]
[]
[]
[]
[null,null,null,"1.","Gelar/ Nama/ Gelar",null,null,null,null,null,null,null,null,null,null,null,":",null,null,null,null,"/",null,null,null,null,null,null,null,null,null,null,null,null,null,null,null,null,null,null,null,null,null,null,null,null,"/"]
[]
[null,null,null,"2.","Jabatan/Unit Kerja",null,null,null,null,null,null,null,null,null,null,null,":",null,null,null,null,null,null,null,null,null,null,null,null,null,null,null,null,null,null,null,null,"/"]
[]
[null,null,null,"3.","Sub-Unit Kerja/Lembaga",null,null,null,null,null,null,null,null,null,null,null,":",null,null,null,null,null,null,null,null,null,null,null,null,null,null,null,null,null,null,null,null,"/"]
[]
[null,null,null,"4.","Alamat Kantor",null,null,null,null,null,null,null,null,null,null,null,":"]
[]
[null,null,"I.  RINGKASAN LAPORAN HARTA KEKAYAAN PENYELENGGARA NEGARA"]
[]
[null,null,null,"1.","HARTA TIDAK BERGERAK (TANAH DAN/ATAU BANGUNAN)",null,null,null,null,null,null,null,null,null,null,null,null,null,null,null,null,null,null,null,null,null,null,null,null,null,null,null,null,null,null,null,null,null,null,null,null,null,null,null,null,null,"Rp",null,{"$f":"SUM(IV.1:IV.2.1!AX54)","v":0}]
[null,null,null,null,null,null,null,null,null,null,null,null,null,null,null,null,null,null,null,null,null,null,null,null,null,null,null,null,null,null,null,null,null,null,null,null,null,null,null,null,null,null,null,null,null,null,null,null,"..............................................."]
[null,null,null,"2.","HARTA BERGERAK (ALAT TRANSPORTASI DAN MESIN)",null,null,null,null,null,null,null,null,null,null,null,null,null,null,null,null,null,null,null,null,null,null,null,null,null,null,null,null,null,null,null,null,null,null,null,null,null,null,null,null,null,"Rp",null,{"$f":"SUM(IV.2.1:IV.2.2!AU40)","v":0}]
[null,null,null,null,null,null,null,null,null,null,null,null,null,null,null,null,null,null,null,null,null,null,null,null,null,null,null,null,null,null,null,null,null,null,null,null,null,null,null,null,null,null,null,null,null,null,null,null,"..............................................."]
[null,null,null,"3.","HARTA BERGERAK LAINNYA",null,null,null,null,null,null,null,null,null,null,null,null,null,null,null,null,null,null,null,null,null,null,null,null,null,null,null,null,null,null,null,null,null,null,null,null,null,null,null,null,null,"Rp",null,{"$f":"SUM(IV.2.2:IV.3!AS44)","v":0}]
[null,null,null,null,null,null,null,null,null,null,null,null,null,null,null,null,null,null,null,null,null,null,null,null,null,null,null,null,null,null,null,null,null,null,null,null,null,null,null,null,null,null,null,null,null,null,null,null,"..............................................."]
[null,null,null,"4.","SURAT BERHARGA",null,null,null,null,null,null,null,null,null,null,null,null,null,null,null,null,null,null,null,null,null,null,null,null,null,null,null,null,null,null,null,null,null,null,null,null,null,null,null,null,null,"Rp",null,{"$f":"SUM(IV.3:IV.4!AV43)","v":0}]
[null,null,null,null,null,null,null,null,null,null,null,null,null,null,null,null,null,null,null,null,null,null,null,null,null,null,null,null,null,null,null,null,null,null,null,null,null,null,null,null,null,null,null,null,null,null,null,null,"..............................................."]
[null,null,null,"5.","KAS DAN SETARA KAS",null,null,null,null,null,null,null,null,null,null,null,null,null,null,null,null,null,null,null,null,null,null,null,null,null,null,null,null,null,null,null,null,null,null,null,null,null,null,null,null,null,"Rp",null,{"$f":"SUM(IV.4:IV.5!AF47)","v":0}]
[null,null,null,null,null,null,null,null,null,null,null,null,null,null,null,null,null,null,null,null,null,null,null,null,null,null,null,null,null,null,null,null,null,null,null,null,null,null,null,null,null,null,null,null,null,null,null,null,"..............................................."]
[null,null,null,"6.","HARTA LAINNYA",null,null,null,null,null,null,null,null,null,null,null,null,null,null,null,null,null,null,null,null,null,null,null,null,null,null,null,null,null,null,null,null,null,null,null,null,null,null,null,null,null,"Rp",null,{"$f":"SUM(IV.5:IV.6!AO31)","v":0}]
[null,null,null,null,null,null,null,null,null,null,null,null,null,null,null,null,null,null,null,null,null,null,null,null,null,null,null,null,null,null,null,null,null,null,null,null,null,null,null,null,null,null,null,null,null,null,null,null,"..............................................."]
[null,null,null,null,null,null,"TOTAL HARTA",null,null,null,null,null,null,null,null,null,null,null,null,null,null,null,null,null,null,null,null,null,null,null,null,null,null,null,null,null,null,null,null,null,null,null,null,null,null,null,"Rp",null,{"$f":"AW23+AW25+AW27+AW29+AW31+AW33","v":0}]
[null,null,null,null,null,null,null,null,null,null,null,null,null,null,null,null,null,null,null,null,null,null,null,null,null,null,null,null,null,null,null,null,null,null,null,null,null,null,null,null,null,null,null,null,null,null,null,null,"..............................................."]
[null,null,null,"7.","HUTANG",null,null,null,null,null,null,null,null,null,null,null,null,null,null,null,null,null,null,null,null,null,null,null,null,null,null,null,null,null,null,null,null,null,null,null,null,null,null,null,null,null,"Rp",null,{"$f":"SUM(IV.6:V.Penerimaan!AO35)","v":0}]
[null,null,null,null,null,null,null,null,null,null,null,null,null,null,null,null,null,null,null,null,null,null,null,null,null,null,null,null,null,null,null,null,null,null,null,null,null,null,null,null,null,null,null,null,null,null,null,null,"..............................................."]
[null,null,null,null,null,null,"TOTAL HARTA KEKAYAAN",null,null,null,null,null,null,null,null,null,null,null,null,null,null,null,null,null,null,null,null,null,null,null,null,null,null,null,null,null,null,null,null,null,null,null,null,null,null,null,"Rp",null,{"$f":"AW35-AW37","v":0}]
[null,null,null,null,null,null,null,null,null,null,null,null,null,null,null,null,null,null,null,null,null,null,null,null,null,null,null,null,null,null,null,null,null,null,null,null,null,null,null,null,null,null,null,null,null,null,null,null,"..............................................."]
[]
[null,null,null,"Saya yang bertanda tangan di bawah ini menyatakan bahwa "]
[null,null,null,"a.","Laporan Harta Kekayaan Penyelenggara Negara (LHKPN) ini Saya buat dengan sebenar-benarnya dalam keadaan sadar, tanpa tekanan maupun paksaan dalam bentuk apapun dan oleh siapapun. Apabila  dikemudian hari terdapat perubahan (baik penambahan maupun pengurangan) harta kekayaan Saya dan keluarga Saya, maka Saya wajib melaporkan perubahan tersebut sesuai dengan ketentuan hukum yang berlaku. Dan apabila dikemudian hari terdapat harta kekayaan Saya dan keluarga Saya yang menjadi tanggungan Saya tidak Saya laporkan, maka Saya bersedia untuk bertanggungjawab sesuai dengan peraturan perundang-undangan yang berlaku."]
[null,null,null,"b.","Untuk memenuhi asas akuntabilitas dan transparansi, saya bersedia apabila lembar Ringkasan Laporan Harta Kekayaan Penyelenggara Negara ini ditempatkan dalam media pengumuman KPK dan atau instansi sebagai informasi awal bagi publik. "]
[null,null,null,null,null,null,null,null,null,null,null,null,null,null,null,null,null,null,null,null,null,null,null,null,null,null,null,null,null,null,null,null,null,null,null,null,null,null,null,null,null,null,null,null,null,null,null,null,null,null,null,","]
[null,null,null,null,null,null,null,null,null,null,null,null,null,null,null,null,null,null,null,null,null,null,null,null,null,null,null,null,null,null,null,null,null,null,null,null,null,null,null,null,null,null,null,null,null,null,"yang melaporkan,"]
[]
[]
[null,null,null,null,null,null,null,null,null,null,null,null,null,null,null,null,null,null,null,null,null,null,null,null,null,null,null,null,null,null,null,null,null,null,null,null,null,null,null,null,null,null,null,null,null,null,"(",{"$f":"R13&\" \"&W13&\" \"&AV13","v":"  "},null,null,null,null,null,null,null,null,null,")"]
[]
[null,null,null,"\"Laporan harta kekayaan ini sesuai dengan yang dilaporkan oleh Penyelenggara Negara dan tidak dapat dijadikan dasar oleh Penyelenggara Negara atau siapapun juga untuk menyatakan bahwa harta yang bersangkutan tidak terkait tindak pidana\""]
[]
[null,"Form LHKPN-KPK-Versi 1.4",null,null,null,null,null,null,null,null,null,null,null,null,null,null,null,null,null,null,null,null,null,null,null,null,null,null,null,null,null,null,null,null,null,null,null,null,null,null,null,null,null,null,null,null,null,null,null,null,null,null,null,null,null,null,null,null,null,"Halaman ke  1  dari  12"]

{"sheet":"II","index":3,"n_rows":35,"n_cols":47,"rows_kept":35,"cut":false,"hidden":false,"merged":[[33,39,33,43],[26,17,26,43],[1,2,1,43],[3,2,3,43],[24,17,24,43],[12,17,12,33],[18,17,18,43],[23,3,23,11],[23,27,23,32],[6,17,6,33],[8,17,8,33],[16,17,16,33],[4,24,4,33],[28,17,28,43],[14,17,14,20],[22,17,22,43],[14,22,14,33],[4,17,4,22],[4,35,4,43],[18,3,18,15],[6,35,14,43],[10,19,10,20],[10,22,10,23]]}
[]
[null,null,"II.  DATA PRIBADI"]
[]
[]
[null,null,"1.","Gelar/ Nama/ Gelar",null,null,null,null,null,null,null,null,null,null,null,null,":",{"$f":"IF(I!R13=\"\",\"\",I!R13)","v":""},null,null,null,null,null,"/",{"$f":"IF(I!W13=\"\",\"\",I!W13)","v":""},null,null,null,null,null,null,null,null,null,"/",{"$f":"IF(I!AV13=\"\",\"\",I!AV13)","v":""}]
[]
[null,null,"2.","NIK (Nomor Induk Kependudukan)",null,null,null,null,null,null,null,null,null,null,null,null,":",null,null,null,null,null,null,null,null,null,null,null,null,null,null,null,null,null,null,"Foto"]
[]
[null,null,"3.","No Kartu Keluarga",null,null,null,null,null,null,null,null,null,null,null,null,":"]
[]
[null,null,"4.","NPWP",null,null,null,null,null,null,null,null,null,null,null,null,":",null,".",null,null,".",null,null,".",null,"-",null,"."]
[]
[null,null,"5.","Alamat Email Aktif",null,null,null,null,null,null,null,null,null,null,null,null,":"]
[]
[null,null,"6.","Kode area - No Telepon Rumah",null,null,null,null,null,null,null,null,null,null,null,null,":",null,null,null,null,"-"]
[]
[null,null,"7.","No Handphone Aktif",null,null,null,null,null,null,null,null,null,null,null,null,":"]
[]
[null,null,"8.","Jabatan Lainnya/Rangkap Jabatan *)",null,null,null,null,null,null,null,null,null,null,null,null,":"]
[]
[null,null,null,"a.  Eselon **)",null,null,null,null,null,null,null,null,null,null,null,null,":",null,null,null,null,null,null,null,null,null,null,null,null,null,null,null,null,null,null,null,null,null,null,null,null,null,null,null,null,null,0]
[]
[null,null,null,"b.  Sub Unit Kerja",null,null,null,null,null,null,null,null,null,null,null,null,":"]
[]
[null,null,null,"c.  Unit Kerja Eselon I/Setara",null,null,null,null,null,null,null,null,null,null,null,null,":"]
[]
[null,null,null,"d.  Lembaga",null,null,null,null,null,null,null,null,null,null,null,null,":"]
[]
[null,null,null,"e.  Alamat Kantor",null,null,null,null,null,null,null,null,null,null,null,null,":"]
[]
[]
[null,null,"Keterangan : "]
[null,null,"*) Apabila ada",null,null,null,null,null,"**)   Pilih salah satu"]
[]
[null,{"$f":"Form_Version","v":"Form LHKPN-KPK-Versi 1.4"},null,null,null,null,null,null,null,null,null,null,null,null,null,null,null,null,null,null,null,null,null,null,null,null,null,null,null,null,null,null,null,null,null,null,null,null,null,null,null,null,null,null,"Halaman ke  2  dari  12"]

{"sheet":"III","index":4,"n_rows":35,"n_cols":65,"rows_kept":35,"cut":false,"hidden":false,"merged":[[17,47,22,55],[21,4,21,12],[23,47,28,55],[27,4,27,12],[17,27,22,38],[23,27,28,38],[17,4,19,6],[17,7,19,12],[23,4,25,6],[23,7,25,12],[5,47,10,55],[11,47,16,55],[15,4,15,12],[5,27,10,38],[11,27,16,38],[5,7,7,12],[5,4,7,6],[5,14,6,16],[5,17,6,25],[11,4,13,6],[11,7,13,12],[4,4,4,12],[4,13,4,26],[4,27,4,38],[4,39,4,46],[4,47,4,55],[1,1,1,56],[3,4,3,12],[3,13,3,26],[3,27,3,38],[3,39,3,46],[3,47,3,55],[5,3,10,3],[11,3,16,3],[17,3,22,3],[23,3,28,3],[5,39,10,46],[11,39,16,46],[17,39,22,46],[23,39,28,46],[9,4,9,12],[11,14,12,16],[11,17,12,25],[17,14,18,16],[17,17,18,25],[23,14,24,16],[23,17,24,25]]}
[]
[null,"III. DATA KELUARGA"]
[]
[null,null,null,"No.","NAMA/HUBUNGAN",null,null,null,null,null,null,null,null,"TEMPAT DAN TANGGAL LAHIR/\nJENIS KELAMIN",null,null,null,null,null,null,null,null,null,null,null,null,null,"PEKERJAAN",null,null,null,null,null,null,null,null,null,null,null,"NO TELEPON/ HANDPHONE",null,null,null,null,null,null,null,"ALAMAT RUMAH"]
[null,null,null,"(1)","(2)",null,null,null,null,null,null,null,null,"(3)",null,null,null,null,null,null,null,null,null,null,null,null,null,"(4)",null,null,null,null,null,null,null,null,null,null,null,"(5)",null,null,null,null,null,null,null,"(6)"]
[null,null,null,null,"Nama :",null,null,null,null,null,null,null,null,null,"Tempat Lahir:",null,null,null,null,null,null,null,null,null,null,null,null,null,null,null,null,null,null,null,null,null,null,null,null,null,null,null,null,null,null,null,null,null,null,null,null,null,null,null,null,null,null,null,null,"Tanggal Lahir 1"]
[null,null,null,null,null,null,null,null,null,null,null,null,null,null,null,null,null,null,null,null,null,null,null,null,null,null,null,null,null,null,null,null,null,null,null,null,null,null,null,null,null,null,null,null,null,null,null,null,null,null,null,null,null,null,null,null,null,null,null,null,"Tunggal","Bulan","Tahun","TglLahir","Age"]
[null,null,null,null,null,null,null,null,null,null,null,null,null,null,null,null,null,null,null,null,null,null,null,null,null,null,null,null,null,null,null,null,null,null,null,null,null,null,null,null,null,null,null,null,null,null,null,null,null,null,null,null,null,null,null,null,null,null,null,null,1,1,1]
[null,null,null,null,null,null,null,null,null,null,null,null,null,null,null,null,null,null,null,null,null,null,null,null,null,null,null,null,null,null,null,null,null,null,null,null,null,null,null,null,null,null,null,null,null,null,null,null,null,null,null,null,null,null,null,null,null,null,null,null,1,1,1]
[null,null,null,null,null,null,null,null,null,null,null,null,null,null,null,null,null,null,null,null,null,null,null,null,null,null,null,null,null,null,null,null,null,null,null,null,null,null,null,null,null,null,null,null,null,null,null,null,null,null,null,null,null,null,null,null,null,null,null,null,1,1,1]
[null,null,null,null,null,null,null,null,null,null,null,null,null,null,null,null,null,null,null,null,null,null,null,null,null,null,null,null,null,null,null,null,null,null,null,null,null,null,null,null,null,null,null,null,null,null,null,null,null,null,null,null,null,null,null,null,null,null,null,null,1,1,1]
[null,null,null,null,"Nama :",null,null,null,null,null,null,null,null,null,"Tempat Lahir:"]
[null,null,null,null,null,null,null,null,null,null,null,null,null,null,null,null,null,null,null,null,null,null,null,null,null,null,null,null,null,null,null,null,null,null,null,null,null,null,null,null,null,null,null,null,null,null,null,null,null,null,null,null,null,null,null,null,null,null,null,"Family1",{"$f":"IF(BI8>1,INDEX(Tanggal,BI8-1),\"\")","v":""},{"$f":"IF(BJ8>1,INDEX(Bulan,BJ8-1),\"\")","v":""},{"$f":"IF(BK8>1,INDEX(ThLahir,BK8-1),\"\")","v":""},{"$f":"IFERROR(DATE(BK13,BJ13,BI13),\"\")","v":""},{"$f":"IF(BL13=\"\",0,((NOW()-BL13)/365))","v":0}]
[null,null,null,null,null,null,null,null,null,null,null,null,null,null,null,null,null,null,null,null,null,null,null,null,null,null,null,null,null,null,null,null,null,null,null,null,null,null,null,null,null,null,null,null,null,null,null,null,null,null,null,null,null,null,null,null,null,null,null,"Family2",{"$f":"IF(BI9>1,INDEX(Tanggal,BI9-1),\"\")","v":""},{"$f":"IF(BJ9>1,INDEX(Bulan,BJ9-1),\"\")","v":""},{"$f":"IF(BK9>1,INDEX(ThLahir,BK9-1),\"\")","v":""},{"$f":"IFERROR(DATE(BK14,BJ14,BI14),\"\")","v":""},{"$f":"IF(BL14=\"\",0,((NOW()-BL14)/365))","v":0}]
[null,null,null,null,null,null,null,null,null,null,null,null,null,null,null,null,null,null,null,null,null,null,null,null,null,null,null,null,null,null,null,null,null,null,null,null,null,null,null,null,null,null,null,null,null,null,null,null,null,null,null,null,null,null,null,null,null,null,null,"Family3",{"$f":"IF(BI10>1,INDEX(Tanggal,BI10-1),\"\")","v":""},{"$f":"IF(BJ10>1,INDEX(Bulan,BJ10-1),\"\")","v":""},{"$f":"IF(BK10>1,INDEX(ThLahir,BK10-1),\"\")","v":""},{"$f":"IFERROR(DATE(BK15,BJ15,BI15),\"\")","v":""},{"$f":"IF(BL15=\"\",0,((NOW()-BL15)/365))","v":0}]
[null,null,null,null,null,null,null,null,null,null,null,null,null,null,null,null,null,null,null,null,null,null,null,null,null,null,null,null,null,null,null,null,null,null,null,null,null,null,null,null,null,null,null,null,null,null,null,null,null,null,null,null,null,null,null,null,null,null,null,"Family4",{"$f":"IF(BI11>1,INDEX(Tanggal,BI11-1),\"\")","v":""},{"$f":"IF(BJ11>1,INDEX(Bulan,BJ11-1),\"\")","v":""},{"$f":"IF(BK11>1,INDEX(ThLahir,BK11-1),\"\")","v":""},{"$f":"IFERROR(DATE(BK16,BJ16,BI16),\"\")","v":""},{"$f":"IF(BL16=\"\",0,((NOW()-BL16)/365))","v":0}]
[]
[null,null,null,null,"Nama :",null,null,null,null,null,null,null,null,null,"Tempat Lahir:"]
[]
[]
[]
[]
[]
[null,null,null,null,"Nama :",null,null,null,null,null,null,null,null,null,"Tempat Lahir:"]
[]
[]
[]
[]
[]
[]
[]
[]
[]
[null,null,null,"Lembar ini dapat diperbanyak sesuai kebutuhan"]
[null,{"$f":"Form_Version","v":"Form LHKPN-KPK-Versi 1.4"},null,null,null,null,null,null,null,null,null,null,null,null,null,null,null,null,null,null,null,null,null,null,null,null,null,null,null,null,null,null,null,null,null,null,null,null,null,null,null,null,null,null,null,null,null,null,null,null,null,null,null,null,null,null,"Halaman ke  3  dari  12"]

{"sheet":"IV.1","index":5,"n_rows":70,"n_cols":57,"rows_kept":70,"cut":false,"hidden":false,"merged":[[43,41,43,45],[28,40,28,45],[7,2,21,2],[23,2,37,2],[39,2,52,2],[18,8,18,19],[26,8,26,19],[28,8,28,19],[31,8,31,19],[44,8,44,19],[47,8,47,19],[10,8,10,19],[12,8,12,19],[15,8,15,19],[20,8,20,19],[26,49,26,53],[12,40,12,45],[12,48,12,53],[31,48,31,53],[26,22,26,24],[26,32,26,37],[1,2,1,54],[5,47,5,54],[5,39,5,46],[3,27,4,38],[3,21,4,26],[3,39,4,46],[3,2,4,2],[3,47,4,54],[5,21,5,26],[5,27,5,38],[3,3,4,20],[5,3,5,20],[53,49,54,53],[51,8,51,19],[42,32,42,37],[54,2,54,45],[34,8,34,19],[42,8,42,19],[43,49,43,53],[36,8,36,19],[47,22,47,24],[44,40,44,45],[42,22,42,24],[44,22,44,25],[39,22,39,25],[49,8,49,19],[39,34,39,37],[47,40,47,45],[47,48,47,53],[44,48,44,53],[7,8,8,19],[23,8,24,19],[39,8,40,19],[28,48,28,53],[42,49,42,53],[42,41,42,45],[10,41,10,45],[10,49,10,53],[11,41,11,45],[11,49,11,53],[27,41,27,45],[27,49,27,53],[15,40,15,45],[15,48,15,53],[53,2,53,45],[44,33,44,37],[31,40,31,45],[7,34,7,37],[15,22,15,24],[7,22,7,25],[10,22,10,24],[10,32,10,37],[12,22,12,25],[12,33,12,37],[23,22,23,25],[23,34,23,37],[28,22,28,25],[26,41,26,45],[28,33,28,37],[31,22,31,24]]}
[]
[null,null,"IV.1. HARTA TIDAK BERGERAK (TANAH DAN/ATAU BANGUNAN)"]
[]
[null,null,"NO","LOKASI",null,null,null,null,null,null,null,null,null,null,null,null,null,null,null,null,null,"LUAS",null,null,null,null,null,"KEPEMILIKAN",null,null,null,null,null,null,null,null,null,null,null,"NILAI PEROLEHAN",null,null,null,null,null,null,null,"NILAI ESTIMASI\nSAAT PELAPORAN"]
[]
[null,null,"(1)","(2)",null,null,null,null,null,null,null,null,null,null,null,null,null,null,null,null,null,"(3)",null,null,null,null,null,"(4)",null,null,null,null,null,null,null,null,null,null,null,"(5)",null,null,null,null,null,null,null,"(6)"]
[]
[null,null,null,"Jalan/No",null,null,null,null,null,null,null,null,null,null,null,null,null,null,null,null,null,null,"Tanah",null,null,null,null,"Jenis Bukti1)",null,null,null,null,null,null,null,null,null,null,null,null,null,null,null,null,null,null,null,null,null,null,null,null,null,null," "]
[]
[]
[null,null,null,"Kel/Desa",null,null,null,null,null,null,null,null,null,null,null,null,null,null,null,null,null,null,null,null,null,"M2/",null,"Nomor Bukti",null,null,null,null,null,null,null,null,null,null,null,null,"Rp",null,null,null,null,null,null,null,"Rp",null,null,null,null,null," "]
[]
[null,null,null,"Kecamatan",null,null,null,null,null,null,null,null,null,null,null,null,null,null,null,null,null,null,"Bangunan",null,null,null,null,"Atas Nama2)"]
[]
[null,null,null,null,null,null,null,null,null,null,null,null,null,null,null,null,null,null,null,null,null,null,null,null,null,null,null,null,null,null,null,null,1,2,3,4,5,6]
[null,null,null,"Kab/Kota",null,null,null,null,null,null,null,null,null,null,null,null,null,null,null,null,null,null,null,null,null,"M2",null,"Asal-usul Harta3)",null,null,null,null,null,null,null,null,null,null,"ket"]
[]
[null,null,null,null,null,null,null,null,null,null,null,null,null,null,null,null,null,null,null,null,null,null,null,null,null,null,null,null,null,null,null,null,1,2,3,4]
[null,null,null,"Provinsi",null,null,null,null,null,null,null,null,null,null,null,null,null,null,null,null,null,null,null,null,null,null,null,"Pemanfaatan4)",null,null,null,null,null,null,null,null,null,null,"ket",null,null,null,null,null,null,null," "]
[]
[null,null,null,"Negara"]
[]
[]
[null,null," ","Jalan/No",null,null,null,null,null,null,null,null,null,null,null,null,null,null,null,null,null,null,"Tanah",null,null,null,null,"Jenis Bukti1)",null,null,null,null,null,null,null,null,null,null,null,null,null,null,null,null,null,null,null,null,null,null,null,null,null,null," "]
[]
[]
[null,null,null,"Kel/Desa",null,null,null,null,null,null,null,null,null,null,null,null,null,null,null,null,null,null,null,null,null,"M2/",null,"Nomor Bukti",null,null,null,null,null,null,null,null,null,null,null,null,"Rp",null,null,null,null,null,null,null,"Rp",null,null,null,null,null," "]
[]
[null,null,null,"Kecamatan",null,null,null,null,null,null,null,null,null,null,null,null,null,null,null,null,null,null,"Bangunan",null,null,null,null,"Atas Nama2)"]
[]
[null,null,null,null,null,null,null,null,null,null,null,null,null,null,null,null,null,null,null,null,null,null,null,null,null,null,null,null,null,null,null,null,1,2,3,4,5,6]
[null,null,null,"Kab/Kota",null,null,null,null,null,null,null,null,null,null,null,null,null,null,null,null,null,null,null,null,null,"M2",null,"Asal-usul Harta3)",null,null,null,null,null,null,null,null,null,null,"ket"]
[]
[null,null,null,null,null,null,null,null,null,null,null,null,null,null,null,null,null,null,null,null,null,null,null,null,null,null,null,null,null,null,null,null,1,2,3,4]
[null,null,null,"Provinsi",null,null,null,null,null,null,null,null,null,null,null,null,null,null,null,null,null,null,null,null,null,null,null,"Pemanfaatan4)",null,null,null,null,null,null,null,null,null,null,"ket",null,null,null,null,null,null,null," "]
[]
[null,null,null,"Negara"]
[]
[]
[null,null," ","Jalan/No",null,null,null,null,null,null,null,null,null,null,null,null,null,null,null,null,null,null,"Tanah",null,null,null,null,"Jenis Bukti1)",null,null,null,null,null,null,null,null,null,null,null,null,null,null,null,null,null,null,null,null,null,null,null,null,null,null," "]
[]
[]
[null,null,null,"Kel/Desa",null,null,null,null,null,null,null,null,null,null,null,null,null,null,null,null,null,null,null,null,null,"M2/",null,"Nomor Bukti",null,null,null,null,null,null,null,null,null,null,null,null,"Rp",null,null,null,null,null,null,null,"Rp",null,null,null,null,null," "]
[]
[null,null,null,"Kecamatan",null,null,null,null,null,null,null,null,null,null,null,null,null,null,null,null,null,null,"Bangunan",null,null,null,null,"Atas Nama2)"]
[]
[null,null,null,null,null,null,null,null,null,null,null,null,null,null,null,null,null,null,null,null,null,null,null,null,null,null,null,null,null,null,null,null,1,2,3,4,5,6]
[null,null,null,"Kab/Kota",null,null,null,null,null,null,null,null,null,null,null,null,null,null,null,null,null,null,null,null,null,"M2",null,"Asal-usul Harta3)",null,null,null,null,null,null,null,null,null,null,"ket"]
[]
[null,null,null,"Provinsi",null,null,null,null,null,null,null,null,null,null,null,null,null,null,null,null,null,null,null,null,null,null,null,null,null,null,null,null,1,2,3,4]
[null,null,null,null,null,null,null,null,null,null,null,null,null,null,null,null,null,null,null,null,null,null,null,null,null,null,null,"Pemanfaatan4)",null,null,null,null,null,null,null,null,null,null,"ket"]
[null,null,null,"Negara",null,null,null,null,null,null,null,null,null,null,null,null,null,null,null,null,null,null,null,null,null,null,null,null,null,null,null,null,null,null,null,null,null,null,null,null,null,null,null,null,null,null," "]
[]
[null,null,"Sub Total/Total",null,null,null,null,null,null,null,null,null,null,null,null,null,null,null,null,null,null,null,null,null,null,null,null,null,null,null,null,null,null,null,null,null,null,null,null,null,null,null,null,null,null,null,null,null,"Rp",{"$f":"AX11+AX27+AX43","v":0}]
[null,null,null,null,null,null,null,null,null,null,null,null,null,null,null,null,null,null,null,null,null,null,null,null,null,null,null,null,null,null,null,null,null,null,null,null,null,null,null,null,null,null,null,null,null,null,null,null,null,null,null,null,null,null," "]
[]
[null,null,"Keterangan:"]
[null,null,"1)  Jenis Bukti Kepemilikan : 1. Sertifikat  2. Lainnya",null,null,null,null,null,null,null,null,null,null,null,null,null,null,null,null,null,null,null,null,null,"3)  Asal-usul Harta: 1. Hasil Sendiri  2. Warisan  3. Hibah dengan Akta  4. Hibah tanpa Akta  5. Hadiah  6. Lainnya",null,null,null,null,null,null,null,null,null,null,null,null,null,null,null,null,null,null,null,null,"     Jika dipilih kode 2 s.d. 6, wajib isi lampiran 1"]
[null,null,"2)  Atas nama: 1.  PN yang bersangkutan  2. Pasangan/Anak  3. Lainnya",null,null,null,null,null,null,null,null,null,null,null,null,null,null,null,null,null,null,null,null,null,"4)  Pemanfaatan : 1. Tempat Tinggal  2. Disewakan  3. Pertanian/Perkebunan/Perikanan/Pertambangan  4. Lainnya"]
[]
[null,null,"Lembar ini dapat diperbanyak sesuai kebutuhan"]
[null,{"$f":"Form_Version","v":"Form LHKPN-KPK-Versi 1.4"},null,null,null,null,null,null,null,null,null,null,null,null,null,null,null,null,null,null,null,null,null,null,null,null,null,null,null,null,null,null,null,null,null,null,null,null,null,null,null,null,null,null,null,null,null,null,null,null,null,null,null,null,null,"Halaman ke  4  dari  12"," "]
[]
[]
[null,1]
[null,2]
[null,3]
[null,4]
[null,5]
[null,6]

{"sheet":"IV.2.1","index":6,"n_rows":55,"n_cols":61,"rows_kept":55,"cut":false,"hidden":false,"merged":[[11,7,11,21],[15,11,15,20],[20,7,20,21],[22,7,22,21],[26,11,26,20],[13,11,13,14],[24,11,24,14],[11,30,11,35],[23,40,23,43],[12,40,12,43],[22,30,22,35],[13,37,13,42],[11,37,11,42],[20,38,20,42],[22,37,22,42],[15,29,15,35],[9,46,9,50],[10,38,10,42],[1,1,1,52],[3,44,4,51],[3,36,4,43],[5,44,5,51],[5,36,5,43],[3,2,4,2],[3,23,4,35],[5,23,5,35],[5,3,5,22],[3,3,4,22],[10,46,10,50],[9,7,9,21],[9,38,9,42],[7,2,15,2],[11,45,11,50],[13,45,13,50],[12,48,12,51],[22,45,22,50],[24,37,24,42],[24,45,24,50],[20,46,20,50],[21,38,21,42],[21,46,21,50],[39,46,40,50],[31,38,31,42],[31,46,31,50],[23,48,23,51],[32,38,32,42],[32,46,32,50],[33,45,33,50],[35,37,35,42],[35,45,35,50],[34,40,34,43],[34,48,34,51],[40,2,40,43],[33,7,33,21],[37,11,37,20],[33,37,33,42],[33,30,33,35],[37,29,37,35],[39,2,39,42],[26,29,26,35],[18,2,26,2],[29,2,37,2],[31,7,31,21],[35,11,35,14]]}
[]
[null,"IV.2.1. HARTA BERGERAK (ALAT TRANSPORTASI DAN MESIN)",null,null,null,null,null,null,null,null,null,null,null,null,null,null,null,null,null,null,null,null,null,null,null,null,null,null,null,null,null,null,null,null,null,null,null,null,null,null,null,null,null,null,null,null,null,null,null,null,null,null,null,"."]
[]
[null,null,"NO","URAIAN",null,null,null,null,null,null,null,null,null,null,null,null,null,null,null,null,null,null,null,"KEPEMILIKAN",null,null,null,null,null,null,null,null,null,null,null,null,"NILAI PEROLEHAN",null,null,null,null,null,null,null,"NILAI ESTIMASI \nSAAT PELAPORAN",null,null,null,null,null,null,null,null,null,"Pemanfaatan"]
[]
[null,null,"(1)","(2)",null,null,null,null,null,null,null,null,null,null,null,null,null,null,null,null,null,null,null,"(3)",null,null,null,null,null,null,null,null,null,null,null,null,"(4)",null,null,null,null,null,null,null,"(5)"]
[]
[null,null,null,null,"Jenis 1)",null,null,null,null,null,null,null,null,null,null,null,null,null,null,null,null,null,null,"Jenis Bukti 2)"]
[null,null,null,null,null,null,null,null,null,null,null,null,null,null,null,null,null,null,null,null,null,null,null,null,null,null,null,null,null,1,2,3,4,5,6,null,null,null,null,null,null,null,null,null,null,null,null,null,null,null,null,null,null,null,null,1,2,3,4,5,6]
[null,null,null,null,"Merek",null,null,null,null,null,null,null,null,null,null,null,null,null,null,null,null,null,null,"Asal-usul Harta3)",null,null,null,null,null,null,null,null,null,null,null,"ket",null,"Rp",null,null,null,null,null,null,null,"Rp",null,null,null,null,null,null,null,null,null,false,false,false,false,false,false]
[]
[null,null,null,null,"Tipe/Model",null,null,null,null,null,null,null,null,null,null,null,null,null,null,null,null,null,null,"Atas nama4)"]
[null,null,null,null,null,null,null,null,null,null,null,null,null,null,null,null,null,null,null,null,null,null,null,null,null,null,null,null,null,1,2,3,4]
[null,null,null,null,"Tahun Pembuatan",null,null,null,null,null,null,null,null,null,null,null,null,null,null,null,null,null,null,"Pemanfaatan 5)",null,null,null,null,null,null,null,null,null,null,null,"ket",null,null,null,null,null,null,null,null,null,null,null,null,null,null,null,null,null,null,0]
[]
[null,null,null,null,"No Pol. / Registrasi",null,null,null,null,null,null,null,null,null,null,null,null,null,null,null,null,null,null,"Keterangan Lainnya"]
[]
[]
[null,null,null,null,"Jenis 1)",null,null,null,null,null,null,null,null,null,null,null,null,null,null,null,null,null,null,"Jenis Bukti 2)"]
[null,null,null,null,null,null,null,null,null,null,null,null,null,null,null,null,null,null,null,null,null,null,null,null,null,null,null,null,null,1,2,3,4,5,6,null,null,null,null,null,null,null,null,null,null,null,null,null,null,null,null,null,null,null,null,1,2,3,4,5,6]
[null,null,null,null,"Merek",null,null,null,null,null,null,null,null,null,null,null,null,null,null,null,null,null,null,"Asal-usul Harta3)",null,null,null,null,null,null,null,null,null,null,null,"ket",null,"Rp",null,null,null,null,null,null,null,"Rp",null,null,null,null,null,null,null,null,null,false,false,false,false,false,false]
[]
[null,null,null,null,"Tipe/Model",null,null,null,null,null,null,null,null,null,null,null,null,null,null,null,null,null,null,"Atas nama4)"]
[null,null,null,null,null,null,null,null,null,null,null,null,null,null,null,null,null,null,null,null,null,null,null,null,null,null,null,null,null,1,2,3,4]
[null,null,null,null,"Tahun Pembuatan",null,null,null,null,null,null,null,null,null,null,null,null,null,null,null,null,null,null,"Pemanfaatan 5)",null,null,null,null,null,null,null,null,null,null,null,"ket",null,null,null,null,null,null,null,null,null,null,null,null,null,null,null,null,null,null,0]
[]
[null,null,null,null,"No Pol. / Registrasi",null,null,null,null,null,null,null,null,null,null,null,null,null,null,null,null,null,null,"Keterangan Lainnya"]
[]
[]
[null,null,null,null,"Jenis 1)",null,null,null,null,null,null,null,null,null,null,null,null,null,null,null,null,null,null,"Jenis Bukti 2)"]
[null,null,null,null,null,null,null,null,null,null,null,null,null,null,null,null,null,null,null,null,null,null,null,null,null,null,null,null,null,1,2,3,4,5,6,null,null,null,null,null,null,null,null,null,null,null,null,null,null,null,null,null,null,null,null,1,2,3,4,5,6]
[null,null,null,null,"Merek",null,null,null,null,null,null,null,null,null,null,null,null,null,null,null,null,null,null,"Asal-usul Harta3)",null,null,null,null,null,null,null,null,null,null,null,"ket",null,"Rp",null,null,null,null,null,null,null,"Rp",null,null,null,null,null,null,null,null,null,false,false,false,false,false,false]
[]
[null,null,null,null,"Tipe/Model",null,null,null,null,null,null,null,null,null,null,null,null,null,null,null,null,null,null,"Atas nama4)"]
[null,null,null,null,null,null,null,null,null,null,null,null,null,null,null,null,null,null,null,null,null,null,null,null,null,null,null,null,null,1,2,3,4]
[null,null,null,null,"Tahun Pembuatan",null,null,null,null,null,null,null,null,null,null,null,null,null,null,null,null,null,null,"Pemanfaatan 5)",null,null,null,null,null,null,null,null,null,null,null,"ket",null,null,null,null,null,null,null,null,null,null,null,null,null,null,null,null,null,null,0]
[]
[null,null,null,null,"No Pol. / Registrasi",null,null,null,null,null,null,null,null,null,null,null,null,null,null,null,null,null,null,"Keterangan Lainnya"]
[]
[null,null,"Sub Total/Total",null,null,null,null,null,null,null,null,null,null,null,null,null,null,null,null,null,null,null,null,null,null,null,null,null,null,null,null,null,null,null,null,null,null,null,null,null,null,null,null,null,null,"Rp",{"$f":"AU10+AU21+AU32","v":0}]
[]
[]
[null,null,"Keterangan:"]
[null,null,"1) Jenis Alat Transportasi/Mesin : 1. Mobil  2. Motor  3. Kapal Laut/Perahu  4.Pesawat Terbang  5. Lainnya",null,null,null,null,null,null,null,null,null,null,null,null,null,null,null,null,null,null,null,null,null,null,null,null,null,null,null,null,null,null,null,"2)  Jenis Bukti: 1. BPKB/STNK  2. Lainnya"]
[null,null,"3)  Asal-usul Harta: 1. Hasil Sendiri  2. Warisan  3.  Hibah dengan Akta  4. Hibah tanpa Akta  5. Hadiah  6. Lainnya",null,null,null,null,null,null,null,null,null,null,null,null,null,null,null,null,null,null,null,null,null,null,null,null,null,null,null,null,null,null,null,"4)  Atas nama: 1.  PN yang bersangkutan  2. Pasangan/Anak  3. Lainnya"]
[null,null,"    Jika dipilih kode 2 s.d. 6, wajib isi lampiran 1",null,null,null,null,null,null,null,null,null,null,null,null,null,null,null,null,null,null,null,null,null,null,null,null,null,null,null,null,null,null,null,"5) Pemanfaatan: 1.  Digunakan Sendiri  2. Tidak digunakan sendiri & menghasilkan  3. Tidak digunakan sendiri & tidak menghasilkan  4. Lainnya"]
[]
[null,null,"Lembar ini dapat diperbanyak sesuai kebutuhan"]
[null,{"$f":"Form_Version","v":"Form LHKPN-KPK-Versi 1.4"},null,null,null,null,null,null,null,null,null,null,null,null,null,null,null,null,null,null,null,null,null,null,null,null,null,null,null,null,null,null,null,null,null,null,null,null,null,null,null,null,null,null,null,null,null,null,null,null,null,null,"Halaman ke  5  dari  12"]
[null,1]
[null,2]
[null,3]
[null,4]
[null,5]
[null,6]

{"sheet":"IV.2.2","index":7,"n_rows":59,"n_cols":59,"rows_kept":59,"cut":false,"hidden":false,"merged":[[7,2,13,2],[16,2,22,2],[25,2,31,2],[34,2,41,2],[46,2,46,5],[39,34,39,40],[39,7,39,22],[41,9,41,22],[43,2,43,40],[43,44,44,49],[7,13,7,22],[3,42,4,50],[5,3,5,24],[5,25,5,32],[5,33,5,41],[5,42,5,50],[7,26,7,29],[1,1,1,51],[3,2,4,2],[3,3,4,24],[3,25,4,32],[3,33,4,41],[11,7,11,22],[13,9,13,22],[9,35,9,40],[9,44,9,49],[18,35,18,40],[18,44,18,49],[16,13,16,22],[9,7,9,10],[18,7,18,10],[16,26,16,29],[20,7,20,22],[22,9,22,22],[29,7,29,22],[31,9,31,22],[27,7,27,10],[37,7,37,10],[38,35,38,40],[27,35,27,40],[25,13,25,22],[34,13,34,22],[27,44,27,49],[37,35,37,40],[37,44,37,49],[25,26,25,29],[34,26,34,29]]}
[]
[null,"IV.2.2. HARTA BERGERAK LAINNYA"]
[]
[null,null,"NO","URAIAN",null,null,null,null,null,null,null,null,null,null,null,null,null,null,null,null,null,null,null,null,null,"ASAL-USUL HARTA 2)",null,null,null,null,null,null,null,"NILAI PEROLEHAN",null,null,null,null,null,null,null,null,"NILAI ESTIMASI \nSAAT PELAPORAN"]
[]
[null,null,"(1)","(2)",null,null,null,null,null,null,null,null,null,null,null,null,null,null,null,null,null,null,null,null,null,"(3)",null,null,null,null,null,null,null,"(4)",null,null,null,null,null,null,null,null,"(5)"]
[]
[null,null,null,null,"Jenis 1)",null,null,null,null,null,null,null,null,null,null,null,null,null,null,null,null,null,null," ",null,null,"Keterangan",null,null,null,null,null,null,null,null,null,null,null,null,null,null,null,null,null,null,null,null,null,null,null,null,null,null,1,2,3,4,5,6]
[null,null,null,null,null,null,null,null,null,null,null,null,null,null,null,null,null,null,null,null,null,null,null,null,null,null,1,2,3,4,5,6]
[null,null,null,null,"Jumlah",null,null,null,null,null,null,null,null,null,null,null,null,null,null,null,null,null,null," ",null,null,null,null,null,null,null,null,null,null,"Rp",null,null,null,null,null,null,null,null,"Rp",null,null,null,null,null,null,null,null,null,false,false,false,false,false,false]
[]
[null,null,null,null,"Satuan",null,null,null,null,null,null,null,null,null,null,null,null,null,null,null,null,null,null," "]
[]
[null,null,null,null,"Keterangan",null,null,null,null,null,null,null,null,null,null,null,null,null,null,null,null,null,null," "]
[]
[]
[null,null,null,null,"Jenis 1)",null,null,null,null,null,null,null,null,null,null,null,null,null,null,null,null,null,null," ",null,null,"Keterangan",null,null,null,null,null,null,null,null,null,null,null,null,null,null,null,null,null,null,null,null,null,null,null,null,null,null,1,2,3,4,5,6]
[null,null,null,null,null,null,null,null,null,null,null,null,null,null,null,null,null,null,null,null,null,null,null,null,null,null,1,2,3,4,5,6]
[null,null,null,null,"Jumlah",null,null,null,null,null,null,null,null,null,null,null,null,null,null,null,null,null,null," ",null,null,null,null,null,null,null,null,null,null,"Rp",null,null,null,null,null,null,null,null,"Rp",null,null,null,null,null,null,null,null,null,false,false,false,false,false,false]
[]
[null,null,null,null,"Satuan",null,null,null,null,null,null,null,null,null,null,null,null,null,null,null,null,null,null," "]
[]
[null,null,null,null,"Keterangan",null,null,null,null,null,null,null,null,null,null,null,null,null,null,null,null,null,null," "]
[]
[]
[null,null,null,null,"Jenis 1)",null,null,null,null,null,null,null,null,null,null,null,null,null,null,null,null,null,null," ",null,null,"Keterangan",null,null,null,null,null,null,null,null,null,null,null,null,null,null,null,null,null,null,null,null,null,null,null,null,null,null,1,2,3,4,5,6]
[null,null,null,null,null,null,null,null,null,null,null,null,null,null,null,null,null,null,null,null,null,null,null,null,null,null,1,2,3,4,5,6]
[null,null," ",null,"Jumlah",null,null,null,null,null,null,null,null,null,null,null,null,null,null,null,null,null,null," ",null,null,null,null,null,null,null,null,null,null,"Rp",null,null,null,null,null,null,null,null,"Rp",null,null,null,null,null,null,null,null,null,false,false,false,false,false,false]
[]
[null,null,null,null,"Satuan",null,null,null,null,null,null,null,null,null,null,null,null,null,null,null,null,null,null," "]
[]
[null,null,null,null,"Keterangan",null,null,null,null,null,null,null,null,null,null,null,null,null,null,null,null,null,null," "]
[]
[]
[null,null,null,null,"Jenis 1)",null,null,null,null,null,null,null,null,null,null,null,null,null,null,null,null,null,null," ",null,null,"Keterangan",null,null,null,null,null,null,null,null,null,null,null,null,null,null,null,null,null,null,null,null,null,null,null,null,null,null,1,2,3,4,5,6]
[]
[null,null,null,null,null,null,null,null,null,null,null,null,null,null,null,null,null,null,null,null,null,null,null,null,null,null,1,2,3,4,5,6]
[null,null," ",null,"Jumlah",null,null,null,null,null,null,null,null,null,null,null,null,null,null,null,null,null,null," ",null,null,null,null,null,null,null,null,null,null,"Rp",null,null,null,null,null,null,null,null,"Rp",null,null,null,null,null,null,null,null,null,false,false,false,false,false,false]
[]
[null,null,null,null,"Satuan",null,null,null,null,null,null,null,null,null,null,null,null,null,null,null,null,null,null," "]
[]
[null,null,null,null,"Keterangan",null,null,null,null,null,null,null,null,null,null,null,null,null,null,null,null,null,null," "]
[null,null,null,4]
[null,null,"Sub Total / Total",null,null,null,null,null,null,null,null,null,null,null,null,null,null,null,null,null,null,null,null,null,null,null,null,null,null,null,null,null,null,null,null,null,null,null,null,null,null,null,null,"Rp",{"$f":"AS10+AS19+AS28+AS38","v":0}]
[]
[]
[null,null,"Keterangan:"]
[null,null,"1) Jenis Harta Bergerak Lainnya: ",null,null,null,null,null,null,null,"1. Perabotan Rumah Tangga  2. Barang Elektronik  3. Perhiasan & Logam/Batu Mulia  4.Barang Seni/Antik  5. Persediaan 6. Harta Bergerak Lainnya"]
[null,null,"2)  Asal-usul Harta: 1. Hasil Sendiri  2. Warisan  3. Hibah dengan Akta  4. Hibah tanpa Akta  5. Hadiah  6. Lainnya",null,null,null,null,null,null,null,null,null,null,null,null,null,null,null,null,null,null,null,null,null,null,null,null,null,null,null,null,null,null,null,null,null,"     Jika dipilih kode 2 s.d. 6, wajib isi lampiran 1"]
[]
[null,null,"Lembar ini dapat diperbanyak sesuai kebutuhan"]
[null,{"$f":"Form_Version","v":"Form LHKPN-KPK-Versi 1.4"},null,null,null,null,null,null,null,null,null,null,null,null,null,null,null,null,null,null,null,null,null,null,null,null,null,null,null,null,null,null,null,null,null,null,null,null,null,null,null,null,null,null,null,null,null,null,null,null,null,"Halaman ke  6  dari  12"]
[]
[null,1]
[null,2]
[null,3]
[null,4]
[null,5]
[null,6]

{"sheet":"IV.3","index":8,"n_rows":57,"n_cols":63,"rows_kept":57,"cut":false,"hidden":false,"merged":[[42,47,43,53],[7,2,13,2],[16,2,22,2],[25,2,31,2],[34,2,40,2],[9,20,12,24],[18,20,21,24],[9,47,9,53],[18,47,18,53],[27,47,27,53],[36,47,36,53],[22,11,22,17],[27,11,27,17],[29,11,29,17],[27,20,30,24],[18,11,18,17],[1,1,1,55],[3,2,4,2],[5,26,5,33],[3,3,4,18],[5,45,5,54],[5,3,5,18],[3,45,4,54],[3,19,4,25],[20,11,20,17],[3,26,4,33],[5,34,5,44],[5,19,5,25],[3,34,4,44],[7,26,7,29],[16,26,16,29],[25,26,25,29],[34,26,34,29],[43,2,43,43],[9,36,9,43],[18,36,18,43],[27,36,27,43],[42,2,42,43],[31,11,31,17],[36,11,36,17],[38,11,38,17],[40,11,40,17],[36,20,39,24],[36,36,36,43],[9,11,9,17],[11,11,11,17],[13,11,13,17]]}
[]
[null,"IV.3. SURAT BERHARGA"]
[]
[null,null,"NO","URAIAN",null,null,null,null,null,null,null,null,null,null,null,null,null,null,null,"NO REKENING/ \nID NASABAH",null,null,null,null,null,null,"ASAL USUL HARTA 3)",null,null,null,null,null,null,null,"NILAI PEROLEHAN",null,null,null,null,null,null,null,null,null,null,"NILAI ESTIMASI \nSAAT PELAPORAN"]
[]
[null,null,"(1)","(2)",null,null,null,null,null,null,null,null,null,null,null,null,null,null,null,"(3)",null,null,null,null,null,null,"(4)",null,null,null,null,null,null,null,"(5)",null,null,null,null,null,null,null,null,null,null,"(6)"]
[]
[null,null,null,"Jenis 1) ",null,null,null,null,null,null,null,null,null,null,null,null,null,null,null,null,null,null,null,null,null,null,"Keterangan"]
[null,null,null,null,null,null,null,null,null,null,null,null,null,null,null,null,null,null,null,null,null,null,null,null,null,null,null,1,2,3,4,5,6,null,null,null,null,null,null,null,null,null,null,null,null,null,null,null,null,null,null,null,null,null,null,null,null,1,2,3,4,5,6]
[null,null,null,"Atas nama 2)",null,null,null,null,null,null,null,null,null,null,null,null,null,null,null,null,null,null,null,null,null,null,null,null,null,null,null,null,null,null,null,"Rp",null,null,null,null,null,null,null,null,null,null,"Rp",null,null,null,null,null,null,null,null,null,null,false,false,false,false,false,false]
[]
[null,null,null,"Penerbit/Perusahaan"]
[]
[null,null,null,"Custodian/Sekuritas"]
[]
[]
[null,null,null,"Jenis 1) ",null,null,null,null,null,null,null,null,null,null,null,null,null,null,null,null,null,null,null,null,null,null,"Keterangan"]
[null,null,null,null,null,null,null,null,null,null,null,null,null,null,null,null,null,null,null,null,null,null,null,null,null,null,null,1,2,3,4,5,6,null,null,null,null,null,null,null,null,null,null,null,null,null,null,null,null,null,null,null,null,null,null,null,null,1,2,3,4,5,6]
[null,null,null,"Atas nama 2)",null,null,null,null,null,null,null,null,null,null,null,null,null,null,null,null,null,null,null,null,null,null,null,null,null,null,null,null,null,null,null,"Rp",null,null,null,null,null,null,null,null,null,null,"Rp",null,null,null,null,null,null,null,null,null,null,false,false,false,false,false,false]
[]
[null,null,null,"Penerbit/Perusahaan"]
[]
[null,null,null,"Custodian/Sekuritas"]
[]
[]
[null,null,null,"Jenis 1) ",null,null,null,null,null,null,null,null,null,null,null,null,null,null,null,null,null,null,null,null,null,null,"Keterangan"]
[null,null,null,null,null,null,null,null,null,null,null,null,null,null,null,null,null,null,null,null,null,null,null,null,null,null,null,1,2,3,4,5,6,null,null,null,null,null,null,null,null,null,null,null,null,null,null,null,null,null,null,null,null,null,null,null,null,1,2,3,4,5,6]
[null,null,null,"Atas nama 2)",null,null,null,null,null,null,null,null,null,null,null,null,null,null,null,null,null,null,null,null,null,null,null,null,null,null,null,null,null,null,null,"Rp",null,null,null,null,null,null,null,null,null,null,"Rp",null,null,null,null,null,null,null,null,null,null,false,false,false,false,false,false]
[]
[null,null,null,"Penerbit/Perusahaan"]
[]
[null,null,null,"Custodian/Sekuritas"]
[]
[]
[null,null,null,"Jenis 1) ",null,null,null,null,null,null,null,null,null,null,null,null,null,null,null,null,null,null,null,null,null,null,"Keterangan"]
[null,null,null,null,null,null,null,null,null,null,null,null,null,null,null,null,null,null,null,null,null,null,null,null,null,null,null,1,2,3,4,5,6,null,null,null,null,null,null,null,null,null,null,null,null,null,null,null,null,null,null,null,null,null,null,null,null,1,2,3,4,5,6]
[null,null,null,"Atas nama 2)",null,null,null,null,null,null,null,null,null,null,null,null,null,null,null,null,null,null,null,null,null,null,null,null,null,null,null,null,null,null,null,"Rp",null,null,null,null,null,null,null,null,null,null,"Rp",null,null,null,null,null,null,null,null,null,null,false,false,false,false,false,false]
[]
[null,null,null,"Penerbit/Perusahaan"]
[]
[null,null,null,"Custodian/Sekuritas"]
[]
[null,null,"Sub Total / Total",null,null,null,null,null,null,null,null,null,null,null,null,null,null,null,null,null,null,null,null,null,null,null,null,null,null,null,null,null,null,null,null,null,null,null,null,null,null,null,null,null,null,null,"Rp",{"$f":"AV10+AV19+AV28+AV37","v":0}]
[]
[null,null,"Keterangan :"]
[null,null,"1) Jenis Surat Berharga :  1. Efek yang diperdagangkan di Bursa (Listing) 2. Kepemilikan/Penyertaan di Perusahaan Non-Listing",null,null,null,null,null,null,null,null,null,null,null,null,null,null,null,null,null,null,null,null,null,null,null,null,null,null,null,null,null,null,null,null,null,null,null,"2)  Atas nama: 1.  PN yang bersangkutan 2. Pasangan/Anak 3. Lainnya"]
[null,null,"3)  Asal-usul Harta: 1. Hasil Sendiri,  2. Warisan,  3. Hibah dengan Akta, 4. Hibah tanpa Akta,  5. Hadiah, 6. Lainnya",null,null,null,null,null,null,null,null,null,null,null,null,null,null,null,null,null,null,null,null,null,null,null,null,null,null,null,null,null,null,null,null,"     Jika dipilih kode 2 s.d. 6, wajib isi lampiran 1"]
[]
[null,null,"Lembar ini dapat diperbanyak sesuai kebutuhan"]
[null,{"$f":"Form_Version","v":"Form LHKPN-KPK-Versi 1.4"},null,null,null,null,null,null,null,null,null,null,null,null,null,null,null,null,null,null,null,null,null,null,null,null,null,null,null,null,null,null,null,null,null,null,null,null,null,null,null,null,null,null,null,null,null,null,null,null,null,null,null,null,null,"Halaman ke  7  dari  12"]
[]
[null,1]
[null,2]
[null,3]
[null,4]
[null,5]
[null,6]

{"sheet":"IV.4","index":9,"n_rows":61,"n_cols":44,"rows_kept":61,"cut":false,"hidden":false,"merged":[[44,18,44,19],[7,2,14,2],[17,2,24,2],[10,4,14,10],[27,2,34,2],[30,4,34,10],[20,4,24,10],[1,1,1,36],[3,2,4,2],[3,3,4,11],[3,21,4,28],[5,3,5,11],[3,12,4,20],[3,29,4,35],[5,21,5,28],[5,12,5,20],[5,29,5,35],[51,30,52,30],[39,30,39,33],[22,32,22,34],[42,32,42,34],[9,30,9,33],[10,32,10,34],[29,30,29,33],[30,32,30,34],[27,32,27,34],[37,32,37,34],[12,32,12,34],[14,32,14,34],[24,32,24,34],[46,31,47,34],[19,30,19,33],[17,32,17,34],[7,32,7,34],[42,14,42,19],[47,2,47,27],[46,2,46,27],[20,32,20,34],[32,32,32,34],[40,32,40,34],[34,32,34,34],[44,32,44,34],[37,2,44,2],[40,4,44,10],[27,13,27,19],[32,14,32,19],[38,14,39,19],[7,21,7,24],[17,21,17,24],[27,21,27,24],[37,21,37,24],[37,13,37,19],[7,13,7,19],[12,14,12,19],[17,13,17,19],[22,14,22,19],[8,14,9,19],[18,14,19,19],[28,14,29,19],[14,18,14,19],[24,18,24,19],[34,18,34,19]]}
[]
[null,"IV.4. KAS DAN SETARA KAS "]
[]
[null,null,"NO","URAIAN",null,null,null,null,null,null,null,null,"INFO REKENING",null,null,null,null,null,null,null,null,"ASAL USUL HARTA 3)",null,null,null,null,null,null,null,"NILAI SALDO"]
[]
[null,null,"(1)","(2)",null,null,null,null,null,null,null,null,"(3)",null,null,null,null,null,null,null,null,"(4)",null,null,null,null,null,null,null,"(5)"]
[null,null,null," "]
[null,null,null,"Jenis 1) ",null,null,null,null,null,null,null,null,null,"Nama Bank/Lembaga :",null,null,null,null,null,null,null,"Keterangan",null,null,null,null,null,null,null,null,"Mata Uang :",null,1]
[null,null,null,null,null,null,null,null,null,null,null,null,null,null,null,null,null,null,null,null,null,null,1,2,3,4,5,6,null,null,null,null,null,null,null,null,null,null,1,2,3,4,5,6]
[null,null,null,"Keterangan :",null,null,null,null,null,null,null," ",null,null,null,null,null,null,null,null," ",null,null,null,null,null,null,null,null,null,null,null,null,null,null," ",null,null,false,false,false,false,false,false]
[null,null,null,null,null,null,null,null,null,null,null,null,null,"Nomor Rekening :",null,null,null,null,null,null," ",null,null,null,null,null,null,null,null,null,"Kurs :",null,1]
[]
[null,null,null,null,null,null,null,null,null,null,null," ",null,null,null,null,null,null,null,null,null,null,null,null,null,null,null,null,null,null,"Saldo :",null,null,null,null," "]
[]
[null,null,null,null,null,null,null,null,null,null,null,null,null,"Atas nama 2)",null,null,null,null,null,null,null,null,null,null,null,null,null,null,null,null,"Ekuivalen Rp",null,{"$f":"AG11*AG13","v":0}]
[]
[null,null,null," "]
[null,null,null,"Jenis 1) ",null,null,null,null,null,null,null,null,null,"Nama Bank/Lembaga :",null,null,null,null,null,null,null,"Keterangan",null,null,null,null,null,null,null,null,"Mata Uang :",null,1,null,null,null,null,null,1,2,3,4,5,6]
[null,null,null,null,null,null,null,null,null,null,null,null,null,null,null,null,null,null,null,null,null,null,1,2,3,4,5,6]
[null,null,null,"Keterangan :",null,null,null,null,null,null,null," ",null,null,null,null,null,null,null,null," ",null,null,null,null,null,null,null,null,null,null,null,null,null,null," ",null,null,false,false,false,false,false,false]
[null,null,null,null,null,null,null,null,null,null,null,null,null,"Nomor Rekening :",null,null,null,null,null,null," ",null,null,null,null,null,null,null,null,null,"Kurs :",null,1]
[]
[null,null,null,null,null,null,null,null,null,null,null," ",null,null,null,null,null,null,null,null,null,null,null,null,null,null,null,null,null,null,"Saldo :",null,null,null,null," "]
[]
[null,null,null,null,null,null,null,null,null,null,null,null,null,"Atas nama 2)",null,null,null,null,null,null,null,null,null,null,null,null,null,null,null,null,"Ekuivalen Rp",null,{"$f":"AG21*AG23","v":0}]
[]
[null,null,null," "]
[null,null,null,"Jenis 1) ",null,null,null,null,null,null,null,null,null,"Nama Bank/Lembaga :",null,null,null,null,null,null,null,"Keterangan",null,null,null,null,null,null,null,null,"Mata Uang :",null,1,null,null,null,null,null,1,2,3,4,5,6]
[null,null,null,null,null,null,null,null,null,null,null,null,null,null,null,null,null,null,null,null,null,null,1,2,3,4,5,6]
[null,null,null,"Keterangan :",null,null,null,null,null,null,null," ",null,null,null,null,null,null,null,null," ",null,null,null,null,null,null,null,null,null,null,null,null,null,null," ",null,null,false,false,false,false,false,false]
[null,null,null,null,null,null,null,null,null,null,null,null,null,"Nomor Rekening :",null,null,null,null,null,null," ",null,null,null,null,null,null,null,null,null,"Kurs :",null,1]
[]
[null,null,null,null,null,null,null,null,null,null,null," ",null,null,null,null,null,null,null,null,null,null,null,null,null,null,null,null,null,null,"Saldo :",null,null,null,null," "]
[]
[null,null,null,null,null,null,null,null,null,null,null,null,null,"Atas nama 2)",null,null,null,null,null,null,null,null,null,null,null,null,null,null,null,null,"Ekuivalen Rp",null,{"$f":"AG31*AG33","v":0}]
[]
[null,null,null," "]
[null,null,null,"Jenis 1) ",null,null,null,null,null,null,null,null,null,"Nama Bank/Lembaga :",null,null,null,null,null,null,null,"Keterangan",null,null,null,null,null,null,null,null,"Mata Uang :",null,1,null,null,null,null,null,1,2,3,4,5,6]
[null,null,null,null,null,null,null,null,null,null,null,null,null,null,null,null,null,null,null,null,null,null,1,2,3,4,5,6]
[null,null,null,"Keterangan :",null,null,null,null,null,null,null," ",null,null,null,null,null,null,null,null," ",null,null,null,null,null,null,null,null,null,null,null,null,null,null," ",null,null,false,false,false,false,false,false]
[null,null,null,null,null,null,null,null,null,null,null,null,null,"Nomor Rekening :",null,null,null,null,null,null," ",null,null,null,null,null,null,null,null,null,"Kurs :",null,1]
[]
[null,null,null,null,null,null,null,null,null,null,null," ",null,null,null,null,null,null,null,null,null,null,null,null,null,null,null,null,null,null,"Saldo :",null,null,null,null," "]
[]
[null,null,null,null,null,null,null,null,null,null,null,null,null,"Atas nama 2)",null,null,null,null,null,null,null,null,null,null,null,null,null,null,null,null,"Ekuivalen Rp",null,{"$f":"AG41*AG43","v":0}]
[]
[null,null,"Sub Total / Total",null,null,null,null,null,null,null,null,null,null,null,null,null,null,null,null,null,null,null,null,null,null,null,null,null,null,null,"Rp",{"$f":"AG15+AG25+AG35+AG45","v":0},null,null,null," "]
[null,null,null,null,null,null,null,null,null,null,null,null,null,null,null,null,null,null,null,null,null,null,null,null,null,null,null,null,null,null,null,null,null,null,null," "]
[]
[null,null,"Keterangan :"]
[null,null,"1) Jenis Kas dan Setara Kas : 1. Uang Tunai  2. Deposito  3. Giro  4. Tabungan  5. Lainnya",null,null,null,null,null,null,null,null,null,null,null,null,null,null,null,null,null,null,null,"2)  Atas nama: 1.  PN yang bersangkutan  2. Pasangan/Anak  3. Lainnya"]
[null,null,"3)  Asal-usul Harta: 1. Hasil Sendiri  2. Warisan  3. Hibah dengan Akta  4. Hibah tanpa Akta  5. Hadiah  6. Lainnya"]
[]
[null,null,"Lembar ini dapat diperbanyak sesuai kebutuhan"]
[null,{"$f":"Form_Version","v":"Form LHKPN-KPK-Versi 1.4"},null,null,null,null,null,null,null,null,null,null,null,null,null,null,null,null,null,null,null,null,null,null,null,null,null,null,null,null,null,null,null,null,null,null,"Halaman ke  8  dari  12"]
[]
[null,1]
[null,2]
[null,3]
[null,4]
[null,5]

{"sheet":"IV.5","index":10,"n_rows":48,"n_cols":54,"rows_kept":48,"cut":false,"hidden":false,"merged":[[6,2,10,2],[12,2,16,2],[18,2,22,2],[24,2,28,2],[14,33,14,36],[13,33,13,36],[19,9,19,21],[21,8,21,21],[19,33,19,36],[7,33,7,37],[6,23,6,26],[12,23,12,26],[18,23,18,26],[13,40,13,43],[14,40,14,43],[16,8,16,21],[15,8,15,21],[5,38,5,44],[5,3,5,22],[5,23,5,30],[5,31,5,37],[7,9,7,21],[9,8,9,21],[10,8,10,21],[7,40,7,43],[8,40,8,43],[13,9,13,21],[8,33,8,36],[3,38,4,44],[1,1,1,45],[3,2,4,2],[3,3,4,22],[3,23,4,30],[3,31,4,37],[19,40,19,43],[20,33,20,36],[20,40,20,43],[30,2,30,36],[30,40,30,43],[22,8,22,21],[25,9,25,21],[27,8,27,21],[28,8,28,21],[24,23,24,26],[31,2,31,36],[25,33,25,36],[26,33,26,36],[25,40,25,43],[26,40,26,43]]}
[]
[null,"IV.5. HARTA LAINNYA"]
[]
[null,null,"NO","URAIAN",null,null,null,null,null,null,null,null,null,null,null,null,null,null,null,null,null,null,null,"ASAL USUL HARTA 2)",null,null,null,null,null,null,null,"NILAI PEROLEHAN",null,null,null,null,null,null,"NILAI ESTIMASI SAAT PELAPORAN"]
[]
[null,null,"(1)","(2)",null,null,null,null,null,null,null,null,null,null,null,null,null,null,null,null,null,null,null,"(3)",null,null,null,null,null,null,null,"(4)",null,null,null,null,null,null,"(5)"]
[null,null,null,null,null,null,null,null,null,null,null,null,null,null,null,null,null,null,null,null,null,null,null,"Keterangan"]
[null,null,null,null,"Jenis 1) ",null,null,null,null,null,null,null,null,null,null,null,null,null,null,null,null,null,null,null,1,2,3,4,5,6,null,null,"Rp",null,null,null,null,null,null,"Rp",null,null,null,null," ",null,null,null,1,2,3,4,5,6]
[]
[null,null,null,null,"Keterangan",null,null,null,null,null,null,null,null,null,null,null,null,null,null,null,null,null," ",null,null,null,null,null,null,null,null,null,null,null,null,null,null,null,null,null,null,null,null,null," ",null,null,null,false,false,false,false,false,false]
[]
[]
[null,null,null,null,null,null,null,null,null,null,null,null,null,null,null,null,null,null,null,null,null,null,null,"Keterangan"]
[null,null,null,null,"Jenis 1) ",null,null,null,null,null,null,null,null,null,null,null,null,null,null,null,null,null,null,null,1,2,3,4,5,6,null,null,"Rp",null,null,null,null,null,null,"Rp",null,null,null,null," ",null,null,null,1,2,3,4,5,6]
[]
[null,null,null,null,"Keterangan",null,null,null,null,null,null,null,null,null,null,null,null,null,null,null,null,null," ",null,null,null,null,null,null,null,null,null,null,null,null,null,null,null,null,null,null,null,null,null," ",null,null,null,false,false,false,false,false,false]
[]
[]
[null,null,null,null,null,null,null,null,null,null,null,null,null,null,null,null,null,null,null,null,null,null,null,"Keterangan"]
[null,null,null,null,"Jenis 1) ",null,null,null,null,null,null,null,null,null,null,null,null,null,null,null,null,null,null,null,1,2,3,4,5,6,null,null,"Rp",null,null,null,null,null,null,"Rp",null,null,null,null," ",null,null,null,1,2,3,4,5,6]
[]
[null,null,null,null,"Keterangan",null,null,null,null,null,null,null,null,null,null,null,null,null,null,null,null,null," ",null,null,null,null,null,null,null,null,null,null,null,null,null,null,null,null,null,null,null,null,null," ",null,null,null,false,false,false,false,false,false]
[]
[]
[null,null,null,null,null,null,null,null,null,null,null,null,null,null,null,null,null,null,null,null,null,null,null,"Keterangan"]
[null,null,null,null,"Jenis 1) ",null,null,null,null,null,null,null,null,null,null,null,null,null,null,null,null,null,null,null,1,2,3,4,5,6,null,null,"Rp",null,null,null,null,null,null,"Rp",null,null,null,null," ",null,null,null,1,2,3,4,5,6]
[]
[null,null,null,null,"Keterangan",null,null,null,null,null,null,null,null,null,null,null,null,null,null,null,null,null," ",null,null,null,null,null,null,null,null,null,null,null,null,null,null,null,null,null,null,null,null,null," ",null,null,null,false,false,false,false,false,false]
[]
[]
[null,null,"Sub Total / Total",null,null,null,null,null,null,null,null,null,null,null,null,null,null,null,null,null,null,null,null,null,null,null,null,null,null,null,null,null,null,null,null,null,null,null,null,"Rp",{"$f":"AO8+AO14+AO20+AO26","v":0}]
[null,null,null,null,null,null,null,null,null,null,null,null,null,null,null,null,null,null,null,null,null,null,null,null,null,null,null,null,null,null,null,null,null,null,null,null,null,null,null,null,null,null,null,null," "]
[]
[null,null,"Keterangan:"]
[null,null,"1) Jenis Harta Lainnya : ",null,null,null,null,null,"1. Piutang, 2. Kerjasama Usaha Yang Tidak Berbadan Hukum, 3. Hak Kekayaan Intelektual, 4. Dana Pensiun/Tabungan Hari Tua, 5. Unitlink"]
[null,null,null,null,null,null,null,null,"6. Sewa Jangka Panjang Dibayar Dimuka, 7. Hak Pengelolaan/Pengusahaan Yang Dimiliki Perorangan, 8. Lainnya"]
[null,null,"2)  Asal-usul Harta: 1. Hasil Sendiri,  2. Warisan,  3. Hibah dengan Akta, 4. Hibah tanpa Akta,  5. Hadiah, 6. Lainnya",null,null,null,null,null,null,null,null,null,null,null,null,null,null,null,null,null,null,null,null,null,null,null,null,null,null,null,null,null,null,null,"    Jika dipilih kode 2 s.d. 6, wajib isi lampiran 1"]
[]
[null,null,"Lembar ini dapat diperbanyak sesuai kebutuhan"]
[null,{"$f":"Form_Version","v":"Form LHKPN-KPK-Versi 1.4"},null,null,null,null,null,null,null,null,null,null,null,null,null,null,null,null,null,null,null,null,null,null,null,null,null,null,null,null,null,null,null,null,null,null,null,null,null,null,null,null,null,null,null,"Halaman ke  9  dari  12"]
[null,1]
[null,2]
[null,3]
[null,4]
[null,5]
[null,6]
[null,7]
[null,8]

{"sheet":"IV.6","index":11,"n_rows":46,"n_cols":46,"rows_kept":46,"cut":false,"hidden":false,"merged":[[18,5,18,9],[14,12,18,20],[14,35,14,36],[13,2,19,2],[20,2,26,2],[21,12,25,20],[26,5,26,9],[18,3,18,4],[25,3,25,4],[3,11,4,21],[3,33,4,37],[3,2,4,2],[7,35,7,36],[7,23,11,31],[6,2,12,2],[8,35,8,36],[12,5,12,9],[11,5,11,9],[11,3,11,4],[1,1,1,45],[5,38,5,44],[5,3,5,10],[9,35,9,36],[10,35,10,36],[3,3,4,10],[3,38,4,44],[5,33,5,37],[5,11,5,21],[5,22,5,32],[7,40,7,42],[9,40,9,42],[8,40,8,42],[10,40,10,42],[7,12,11,20],[3,22,4,32],[14,40,14,42],[25,5,25,9],[22,35,22,36],[22,40,22,42],[23,35,23,36],[24,35,24,36],[21,35,21,36],[16,40,16,42],[17,40,17,42],[16,35,16,36],[17,35,17,36],[15,35,15,36],[15,40,15,42],[14,23,18,31],[21,23,25,31],[19,5,19,9],[32,5,32,9],[33,5,33,9],[31,40,31,42],[35,40,35,42],[34,40,34,42],[28,23,32,31],[34,2,34,36],[28,35,28,36],[29,35,29,36],[30,35,30,36],[28,40,28,42],[30,40,30,42],[27,2,33,2],[28,12,32,20],[32,3,32,4],[21,40,21,42],[23,40,23,42],[24,40,24,42],[29,40,29,42],[31,35,31,36]]}
[]
[null,"IV.6.  HUTANG"]
[]
[null,null,"No","URAIAN",null,null,null,null,null,null,null,"NAMA KREDITUR",null,null,null,null,null,null,null,null,null,null,"BENTUK AGUNAN",null,null,null,null,null,null,null,null,null,null,"NILAI AWAL HUTANG",null,null,null,null,"NILAI SALDO HUTANG"]
[]
[null,null,"(1)","(2)",null,null,null,null,null,null,null,"(3)",null,null,null,null,null,null,null,null,null,null,"(4)",null,null,null,null,null,null,null,null,null,null,"(5)",null,null,null,null,"(6)"]
[null,null,null,null,null,null,null,null,null,null,null," "]
[null,null,null,"Jenis 1)  ",null,null,null,null,null,null," ",null,null,null,null,null,null,null,null,null,null,null,null,null,null,null,null,null,null,null,null,null," ",null,"Rp",null,null," ",null,"Rp"]
[null,null,null,null,null,null,null,null,null,null," "]
[null,null,null,"Atas Nama 2)  "]
[]
[null,null,null,"Keterangan"]
[]
[]
[null,null,null,"Jenis 1)  ",null,null,null,null,null,null," ",null,null,null,null,null,null,null,null,null,null," ",null,null,null,null,null,null,null,null,null,null," ",null,"Rp",null,null," ",null,"Rp"]
[null,null,null,null,null,null,null,null,null,null," "]
[null,null,null,"Atas Nama 2)  "]
[]
[null,null,null,"Keterangan"]
[]
[]
[null,null,null,"Jenis 1)  ",null,null,null,null,null,null," ",null,null,null,null,null,null,null,null,null,null,null,null,null,null,null,null,null,null,null,null,null," ",null,"Rp",null,null," ",null,"Rp"]
[null,null,null,null,null,null,null,null,null,null," "]
[null,null,null,"Atas Nama 2)  "]
[]
[null,null,null,"Keterangan"]
[]
[]
[null,null,null,"Jenis 1)  ",null,null,null,null,null,null," ",null,null,null,null,null,null,null,null,null,null,null,null,null,null,null,null,null,null,null,null,null," ",null,"Rp",null,null," ",null,"Rp"]
[null,null,null,null,null,null,null,null,null,null," "]
[null,null,null,"Atas Nama 2)  "]
[]
[null,null,null,"Keterangan"]
[]
[null,null,"Sub Total / Total",null,null,null,null,null,null,null,null,null,null,null,null,null,null,null,null,null,null,null,null,null,null,null,null,null,null,null,null,null,null,null,null,null,null,null,null,"Rp",{"$f":"AO8+AO15+AO22+AO29","v":0},null,null,null," "]
[]
[null,null,"Keterangan : "]
[null,null,"1)  Jenis Hutang :  1. Hutang Konsumtif (KPR, Kendaraan, Kartu Kredit, Multiguna)  2. Hutang Komersial/Usaha/Korporasi  3. Hutang Lainnya"]
[null,null,"2)  Atas nama: 1.  PN yang bersangkutan 2. Pasangan/Anak 3. Lainnya"]
[]
[null,null,"Lembar ini dapat diperbanyak sesuai kebutuhan"]
[null,{"$f":"Form_Version","v":"Form LHKPN-KPK-Versi 1.4"},null,null,null,null,null,null,null,null,null,null,null,null,null,null,null,null,null,null,null,null,null,null,null,null,null,null,null,null,null,null,null,null,null,null,null,null,null,null,null,null,null,null,null,"Halaman ke  10  dari  12"]
[]
[null,1]
[null,2]
[null,3]

{"sheet":"V.Penerimaan","index":12,"n_rows":67,"n_cols":50,"rows_kept":67,"cut":false,"hidden":false,"merged":[[25,35,25,48],[40,35,42,48],[43,35,45,48],[44,2,44,32],[60,2,60,32],[63,2,63,32],[28,35,30,48],[59,35,61,48],[62,35,64,48],[25,21,25,33],[51,20,51,32],[54,20,54,32],[57,20,57,32],[53,35,55,48],[56,35,58,48],[32,3,32,5],[29,6,29,18],[32,6,32,18],[29,20,29,32],[32,20,32,32],[55,3,55,5],[56,3,56,5],[57,3,57,5],[58,3,58,5],[1,1,1,49],[4,2,5,2],[4,34,5,48],[6,34,6,48],[4,3,5,33],[6,3,6,33],[7,2,7,48],[10,3,10,5],[8,2,9,5],[8,6,9,19],[8,20,9,33],[2,1,2,18],[2,20,2,22],[10,7,11,19],[11,3,11,5],[51,3,51,5],[53,3,53,5],[54,3,54,5],[51,6,51,18],[54,6,54,18],[39,3,39,5],[41,3,41,5],[42,3,42,5],[41,6,41,18],[41,20,41,32],[38,3,38,5],[38,6,38,18],[10,35,11,48],[12,35,14,48],[47,35,49,48],[48,20,48,32],[15,35,17,48],[18,35,20,48],[21,35,23,48],[31,35,33,48],[34,35,36,48],[37,35,39,48],[27,2,27,48],[21,3,21,5],[22,3,22,5],[23,3,23,5],[17,3,17,5],[18,3,18,5],[19,3,19,5],[16,3,16,5],[15,3,15,5],[20,3,20,5],[25,2,25,5],[12,3,12,5],[13,3,13,5],[14,3,14,5],[50,35,52,48],[64,2,64,5],[33,3,33,5],[34,3,34,5],[35,3,35,5],[36,3,36,5],[37,3,37,5],[29,3,29,5],[30,3,30,5],[46,2,46,48],[38,20,38,32],[35,6,35,18],[35,20,35,32],[57,6,57,18],[52,3,52,5],[47,3,47,5],[48,3,48,5],[49,3,49,5],[50,3,50,5],[48,6,48,18],[25,7,25,19],[12,7,14,19],[15,7,17,19],[18,7,20,19],[21,7,23,19],[10,21,11,33],[12,21,14,33],[15,21,17,33],[18,21,20,33],[21,21,23,33]]}
[]
[null,"V. INFORMASI PENERIMAAN TUNAI"]
[null,"Januari s.d. Desember Tahun"]
[]
[null,null,"NO","JENIS PENERIMAAN",null,null,null,null,null,null,null,null,null,null,null,null,null,null,null,null,null,null,null,null,null,null,null,null,null,null,null,null,null,null,"TOTAL PENERIMAAN"]
[]
[null,null,"(1)","(2)",null,null,null,null,null,null,null,null,null,null,null,null,null,null,null,null,null,null,null,null,null,null,null,null,null,null,null,null,null,null,"(3)"]
[]
[null,null,"A.   PENERIMAAN DARI PEKERJAAN",null,null,null,"Penyelenggara Negara (PN)",null,null,null,null,null,null,null,null,null,null,null,null,null,"Pasangan PN"]
[]
[null,null,"1.","Gaji dan tunjangan ",null,null,"Rp",null,null,null,null,null,null,null,null,null,null,null,null,null,"Rp",null,null,null,null,null,null,null,null,null,null,null,null,null,"Rp",{"$f":"H11+V11","v":0}]
[]
[null,null,null,null,null,null,null,null,null,null,null,null,null,null,null,null,null,null,null,null,null,null,null,null,null,null,null,null,null,null,null,null,null,null,null,{"$f":"H13+V13","v":0}]
[null,null,"2.","Penghasilan dari profesi/keahlian ",null,null,"Rp",null,null,null,null,null,null,null,null,null,null,null,null,null,"Rp",null,null,null,null,null,null,null,null,null,null,null,null,null,"Rp"]
[]
[null,null,null,null,null,null,null,null,null,null,null,null,null,null,null,null,null,null,null,null,null,null,null,null,null,null,null,null,null,null,null,null,null,null,null,{"$f":"H16+V16","v":0}]
[null,null,"3.","Honorarium ",null,null,"Rp",null,null,null,null,null,null,null,null,null,null,null,null,null,"Rp",null,null,null,null,null,null,null,null,null,null,null,null,null,"Rp"]
[]
[null,null,null,null,null,null,null,null,null,null,null,null,null,null,null,null,null,null,null,null,null,null,null,null,null,null,null,null,null,null,null,null,null,null,null,{"$f":"H19+V19","v":0}]
[null,null,"4.","Tantiem, bonus, jasa produksi, THR ",null,null,"Rp",null,null,null,null,null,null,null,null,null,null,null,null,null,"Rp",null,null,null,null,null,null,null,null,null,null,null,null,null,"Rp"]
[]
[null,null,null,null,null,null,null,null,null,null,null,null,null,null,null,null,null,null,null,null,null,null,null,null,null,null,null,null,null,null,null,null,null,null,null,{"$f":"H22+V22","v":0}]
[null,null,"5.","Penerimaan dari pekerjaan lainnya",null,null,"Rp",null,null,null,null,null,null,null,null,null,null,null,null,null,"Rp",null,null,null,null,null,null,null,null,null,null,null,null,null,"Rp"]
[]
[]
[null,null,"SUB TOTAL",null,null,null,"Rp",{"$f":"H11+H13+H16+H19+H22","v":0},null,null,null,null,null,null,null,null,null,null,null,null,"Rp",{"$f":"V11+V13+V16+V19+V22","v":0},null,null,null,null,null,null,null,null,null,null,null,null,"Rp",{"$f":"AJ11+AJ13+AJ16+AJ19+AJ22","v":0}]
[]
[null,null,"B. PENERIMAAN DARI USAHA DAN KEKAYAAN"]
[]
[null,null,"1.","Hasil investasi dalam surat berharga",null,null,null,null,null,null,null,null,null,null,null,null,null,null,null,null,null,null,null,null,null,null,null,null,null,null,null,null,null,null,"Rp"]
[]
[]
[null,null,"2.","Hasil usaha/Sewa",null,null,null,null,null,null,null,null,null,null,null,null,null,null,null,null,null,null,null,null,null,null,null,null,null,null,null,null,null,null,"Rp"]
[]
[]
[null,null,"3.","Bunga tabungan/deposito, dan lainnya",null,null,null,null,null,null,null,null,null,null,null,null,null,null,null,null,null,null,null,null,null,null,null,null,null,null,null,null,null,null,"Rp"]
[]
[]
[null,null,4,"Penjualan atau pelepasan harta",null,null,null,null,null,null,null,null,null,null,null,null,null,null,null,null,null,null,null,null,null,null,null,null,null,null,null,null,null,null,"Rp"]
[]
[]
[null,null,"5.","Penerimaan lainnya",null,null,null,null,null,null,null,null,null,null,null,null,null,null,null,null,null,null,null,null,null,null,null,null,null,null,null,null,null,null,"Rp"]
[]
[null,null,null,null,null,null,null,null,null,null,null,null,null,null,null,null,null,null,null,null,null,null,null,null,null,null,null,null,null,null,null,null,null,null,null,{"$f":"AJ29+AJ32+AJ35+AJ38+AJ41","v":0}]
[null,null,"SUB TOTAL",null,null,null,null,null,null,null,null,null,null,null,null,null,null,null,null,null,null,null,null,null,null,null,null,null,null,null,null,null,null,null,"Rp"]
[]
[null,null,"C.   PENERIMAAN LAINNYA"]
[]
[null,null,"1.","Penerimaan hutang",null,null,null,null,null,null,null,null,null,null,null,null,null,null,null,null,null,null,null,null,null,null,null,null,null,null,null,null,null,null,"Rp"]
[]
[]
[null,null,"2.","Penerimaan warisan",null,null,null,null,null,null,null,null,null,null,null,null,null,null,null,null,null,null,null,null,null,null,null,null,null,null,null,null,null,null,"Rp"]
[]
[]
[null,null,"3.","Penerimaan hibah/hadiah",null,null,null,null,null,null,null,null,null,null,null,null,null,null,null,null,null,null,null,null,null,null,null,null,null,null,null,null,null,null,"Rp"]
[]
[]
[null,null,"4.","Lainnya ",null,null,null,null,null,null,null,null,null,null,null,null,null,null,null,null,null,null,null,null,null,null,null,null,null,null,null,null,null,null,"Rp"]
[]
[null,null,null,null,null,null,null,null,null,null,null,null,null,null,null,null,null,null,null,null,null,null,null,null,null,null,null,null,null,null,null,null,null,null,null,{"$f":"AJ48+AJ51+AJ54+AJ57","v":0}]
[null,null,"SUB TOTAL",null,null,null,null,null,null,null,null,null,null,null,null,null,null,null,null,null,null,null,null,null,null,null,null,null,null,null,null,null,null,null,"Rp"]
[]
[null,null,null,null,null,null,null,null,null,null,null,null,null,null,null,null,null,null,null,null,null,null,null,null,null,null,null,null,null,null,null,null,null,null,null,{"$f":"AJ26+AJ44+AJ60","v":0}]
[null,null,"TOTAL PENERIMAAN  (A + B + C)",null,null,null,null,null,null,null,null,null,null,null,null,null,null,null,null,null,null,null,null,null,null,null,null,null,null,null,null,null,null,null,"Rp"]
[]
[]
[null,{"$f":"Form_Version","v":"Form LHKPN-KPK-Versi 1.4"},null,null,null,null,null,null,null,null,null,null,null,null,null,null,null,null,null,null,null,null,null,null,null,null,null,null,null,null,null,null,null,null,null,null,null,null,null,null,null,null,null,null,null,null,null,null,null,"Halaman ke  11  dari  12"]

{"sheet":"VI.Pengeluaran","index":13,"n_rows":55,"n_cols":23,"rows_kept":55,"cut":false,"hidden":false,"merged":[[8,2,8,21],[12,3,12,9],[13,3,13,9],[9,3,10,9],[14,3,14,9],[11,3,11,9],[9,11,11,21],[12,11,14,21],[1,1,1,22],[4,2,5,2],[4,3,5,9],[4,10,5,21],[6,3,6,9],[6,10,6,21],[2,1,2,7],[45,3,45,9],[46,3,46,9],[48,2,48,9],[31,11,33,21],[34,11,36,21],[31,3,31,9],[32,3,32,9],[33,3,33,9],[35,2,35,9],[42,3,42,9],[43,3,43,9],[25,11,27,21],[15,11,17,21],[18,11,20,21],[28,11,30,21],[21,11,23,21],[24,2,24,21],[18,3,18,9],[19,3,19,9],[20,3,20,9],[28,3,28,9],[29,3,29,9],[30,3,30,9],[17,3,17,9],[26,3,26,9],[27,3,27,9],[22,2,22,9],[25,3,25,9],[15,3,15,9],[16,3,16,9],[51,2,51,9],[37,2,37,21],[41,3,41,9],[44,11,46,21],[47,11,49,21],[50,11,52,21],[52,2,52,9],[44,3,44,9],[38,11,40,21],[41,11,43,21],[38,3,38,9],[39,3,39,9],[40,3,40,9]]}
[]
[null,"VI. INFORMASI PENGELUARAN TUNAI"]
[null,"Januari s.d. Desember Tahun",null,null,null,null,null,null,{"$f":"IF(V.Penerimaan!U3=\"\",\"\",V.Penerimaan!U3)","v":""}]
[]
[null,null,"NO","JENIS PENGELUARAN",null,null,null,null,null,null,"TOTAL PENGELUARAN"]
[]
[null,null,"(1)","(2)",null,null,null,null,null,null,"(3)"]
[]
[null,null,"A.   PENGELUARAN RUTIN"]
[null,null,null,"Biaya rumah tangga (termasuk transportasi, pendidikan, kesehatan, rekreasi, pembayaran kartu kredit)"]
[null,null,"1.",null,null,null,null,null,null,null,"Rp"]
[]
[]
[null,null,2,"Biaya sosial (keagamaan, adat, zakat, infaq, sumbangan lain)",null,null,null,null,null,null,"Rp"]
[]
[]
[null,null,"3.","Pembayaran Pajak (PBB, kendaraan, pajak daerah, pajak lain)",null,null,null,null,null,null,"Rp"]
[]
[]
[null,null,"4.","Pengeluaran rutin lainnya",null,null,null,null,null,null,"Rp"]
[]
[null,null,null,null,null,null,null,null,null,null,null,{"$f":"L10+L13+L16+L19","v":0}]
[null,null,"SUB TOTAL",null,null,null,null,null,null,null,"Rp"]
[]
[null," ","B.   PENGELUARAN NON-RUTIN"]
[]
[null,null,"1.","Pembelian/perolehan harta baru",null,null,null,null,null,null,"Rp"]
[]
[]
[null,null,"2.","Pemeliharaan/modifikasi/rehabilitasi harta",null,null,null,null,null,null,"Rp"]
[]
[]
[null,null,"3.","Pengeluaran non-rutin lainnya",null,null,null,null,null,null,"Rp"]
[]
[null,null,null,null,null,null,null,null,null,null,null,{"$f":"L26+L29+L32","v":0}]
[null,null,"SUB TOTAL",null,null,null,null,null,null,null,"Rp"]
[]
[null,null,"C.   PENGELUARAN LAINNYA"]
[]
[null,null,"1.","Biaya pengurusan waris/hibah/hadiah",null,null,null,null,null,null,"Rp"]
[]
[]
[null,null,"2.","Pelunasan/angsuran hutang",null,null,null,null,null,null,"Rp"]
[]
[]
[null,null,"3.","Pengeluaran Lainnya",null,null,null,null,null,null,"Rp"]
[]
[null,null,null,null,null,null,null,null,null,null,null,{"$f":"L39+L42+L45","v":0}]
[null,null,"SUB TOTAL",null,null,null,null,null,null,null,"Rp"]
[]
[null,null,null,null,null,null,null,null,null,null,null,{"$f":"L22+L35+L48","v":0}]
[null,null,"TOTAL PENGELUARAN (A + B + C)",null,null,null,null,null,null,null,"Rp"]
[]
[]
[null,{"$f":"Form_Version","v":"Form LHKPN-KPK-Versi 1.4"},null,null,null,null,null,null,null,null,null,null,null,null,null,null,null,null,null,null,null,null,"Halaman ke  12  dari  12"]

{"sheet":"Lampiran1-Penjualan-Pelepasan","index":14,"n_rows":51,"n_cols":44,"rows_kept":51,"cut":false,"hidden":false,"merged":[[23,36,25,41],[30,36,32,41],[37,36,39,41],[14,2,18,2],[21,2,25,2],[28,2,32,2],[35,2,39,2],[14,36,14,41],[35,36,35,41],[28,36,28,41],[21,36,21,41],[16,36,18,41],[14,11,15,11],[21,11,22,11],[16,7,18,12],[23,7,25,12],[7,2,11,2],[9,36,11,41],[1,2,1,43],[3,3,4,13],[3,14,4,24],[3,25,4,32],[3,33,4,42],[7,11,8,11],[3,2,4,2],[5,33,5,42],[5,25,5,32],[5,3,5,13],[5,14,5,24],[7,36,7,41],[7,15,11,23],[37,7,39,12],[9,26,9,31],[16,26,16,31],[23,26,23,31],[30,26,30,31],[37,26,37,31],[35,11,36,11],[28,11,29,11],[30,7,32,12],[9,7,11,12],[14,15,18,23],[21,15,25,23],[28,15,32,23],[35,15,39,23]]}
[]
[null,null,"LAMPIRAN 1 - INFORMASI PENJUALAN/PELEPASAN HARTA DAN PENERIMAAN/PEMBERIAN HIBAH DALAM SETAHUN"]
[]
[null,null,"NO","URAIAN ",null,null,null,null,null,null,null,null,null,null,"NAMA HARTA",null,null,null,null,null,null,null,null,null,null,"NILAI",null,null,null,null,null,null,null,"INFORMASI PIHAK KEDUA"]
[]
[null,null,"(1)","(2)",null,null,null,null,null,null,null,null,null,null,"(3)",null,null,null,null,null,null,null,null,null,null,"(4)",null,null,null,null,null,null,null,"(5)"]
[]
[null,null,null,null,"Jenis 1)",null,null,null,null,null,null,null,null,null,null,null,null,null,null,null,null,null,null,null," ",null,null,null,null,null,null,null,null,null,"Nama",null,null,null,null,null,null,null," "]
[]
[null,null,null,null,"Keterangan ",null,null,null,null,null,null,null,null,null,null,null,null,null,null,null,null,null,null,null,null,"Rp",null,null,null,null,null,null,null,null,"Alamat",null,null,null,null,null,null,null," "]
[]
[null,null,null,null,null,null,null,null,null,null,null,null,null,null,null,null,null,null,null,null,null,null,null,null," ",null,null,null,null,null,null,null,null,null,null,null,null,null,null,null,null,null," "]
[]
[]
[null,null,null,null,"Jenis 1)",null,null,null,null,null,null,null,null,null,null,null,null,null,null,null,null,null,null,null," ",null,null,null,null,null,null,null,null,null,"Nama",null,null,null,null,null,null,null," "]
[]
[null,null,null,null,"Keterangan",null,null,null,null,null,null,null,null," ",null,null,null,null,null,null,null,null,null,null,null,"Rp",null,null,null,null,null,null,null,null,"Alamat",null,null,null,null,null,null,null," "]
[]
[null,null,null,null,null,null,null,null,null,null,null,null,null," ",null,null,null,null,null,null,null,null,null,null," ",null,null,null,null,null,null,null,null,null,null,null,null,null,null,null,null,null," "]
[]
[]
[null,null,null,null,"Jenis 1)",null,null,null,null,null,null,null,null,null,null,null,null,null,null,null,null,null,null,null," ",null,null,null,null,null,null,null,null,null,"Nama",null,null,null,null,null,null,null," "]
[]
[null,null,null,null,"Keterangan ",null,null,null,null,null,null,null,null," ",null,null,null,null,null,null,null,null,null,null,null,"Rp",null,null,null,null,null,null,null,null,"Alamat",null,null,null,null,null,null,null," "]
[]
[null,null,null,null,null,null,null,null,null,null,null,null,null," ",null,null,null,null,null,null,null,null,null,null," ",null,null,null,null,null,null,null,null,null,null,null,null,null,null,null,null,null," "]
[]
[]
[null,null,null,null,"Jenis 1)",null,null,null,null,null,null,null,null,null,null,null,null,null,null,null,null,null,null,null," ",null,null,null,null,null,null,null,null,null,"Nama",null,null,null,null,null,null,null," "]
[]
[null,null,null,null,"Keterangan ",null,null,null,null,null,null,null,null," ",null,null,null,null,null,null,null,null,null,null,null,"Rp",null,null,null,null,null,null,null,null,"Alamat",null,null,null,null,null,null,null," "]
[]
[null,null,null,null,null,null,null,null,null,null,null,null,null," ",null,null,null,null,null,null,null,null,null,null," ",null,null,null,null,null,null,null,null,null,null,null,null,null,null,null,null,null," "]
[]
[]
[null,null,null,null,"Jenis 1)",null,null,null,null,null,null,null,null,null,null,null,null,null,null,null,null,null,null,null," ",null," ",null,null,null,null,null,null,null,"Nama",null,null,null,null,null,null,null," "]
[]
[null,null,null,null,"Keterangan ",null,null,null,null,null,null,null,null," ",null,null,null,null,null,null,null,null,null,null,null,"Rp",null,null,null,null,null,null,null,null,"Alamat",null,null,null,null,null,null,null," "]
[]
[null,null,null,null,null,null,null,null,null,null,null,null,null," ",null,null,null,null,null,null,null,null,null,null," ",null,null,null,null,null,null,null,null,null,null,null,null,null,null,null,null,null," "]
[]
[]
[null,null,"Keterangan:"]
[null,null,"1)  Jenis : 1. Penjualan Harta 2. Pelepasan Harta 3. Penerimaan Hibah  4. Pemberian Hibah"]
[]
[null,null,"Lembar ini dapat diperbanyak sesuai kebutuhan"]
[null,{"$f":"Form_Version","v":"Form LHKPN-KPK-Versi 1.4"},null,null,null,null,null,null,null,null,null,null,null,null,null,null,null,null,null,null,null,null,null,null,null,null,null,null,null,null,null,null,null,null,null,null,null,null,null,null,null,null,null,"Halaman ke  i  dari  iv"]
[null,1]
[null,2]
[null,3]
[null,4]

{"sheet":"Lampiran2-Fasilitas","index":15,"n_rows":53,"n_cols":42,"rows_kept":53,"cut":false,"hidden":false,"merged":[[7,31,11,39],[14,31,18,39],[21,31,25,39],[28,31,32,39],[35,31,39,39],[7,18,11,28],[14,18,18,28],[21,18,25,28],[28,18,32,28],[35,18,39,28],[7,2,11,2],[14,2,18,2],[21,2,25,2],[28,2,32,2],[35,2,39,2],[5,3,5,16],[1,2,1,40],[3,2,4,2],[3,3,4,16],[3,17,4,29],[3,30,4,40],[5,17,5,29],[5,30,5,40],[9,7,11,15],[16,7,18,15],[23,7,25,15],[30,7,32,15],[37,7,39,15]]}
[]
[null,null,"LAMPIRAN 2 - INFORMASI PENERIMAAN FASILITAS/BENEFIT DALAM SETAHUN"]
[]
[null,null,"NO","URAIAN",null,null,null,null,null,null,null,null,null,null,null,null,null,"NAMA PIHAK PEMBERI FASILITAS",null,null,null,null,null,null,null,null,null,null,null,null,"KETERANGAN"]
[]
[null,null,"(1)","(2)",null,null,null,null,null,null,null,null,null,null,null,null,null,"(3)",null,null,null,null,null,null,null,null,null,null,null,null,"(4)"]
[]
[null,null,null,null,"Jenis 1) ",null,null,null,null,null,null,null,null,null,null,null," ",null,null,null,null,null,null,null,null,null,null,null,null," ",null,null,null,null,null,null,null,null,null,null," "]
[]
[null,null,null,null,"Ket",null,null,null,null,null,null,null,null,null,null,null," ",null,null,null,null,null,null,null,null,null,null,null,null," ",null,null,null,null,null,null,null,null,null,null," "]
[]
[null,null,null,null,null,null,null,null,null,null,null,null,null,null,null,null," ",null,null,null,null,null,null,null,null,null,null,null,null," ",null,null,null,null,null,null,null,null,null,null," "]
[]
[]
[null,null,null,null,"Jenis 1) ",null,null,null,null,null,null,null,null,null,null,null," ",null,null,null,null,null,null,null,null,null,null,null,null," ",null,null,null,null,null,null,null,null,null,null," "]
[]
[null,null,null,null,"Ket",null,null,null,null,null,null,null,null,null,null,null," ",null,null,null,null,null,null,null,null,null,null,null,null," ",null,null,null,null,null,null,null,null,null,null," "]
[]
[null,null,null,null,null,null,null,null,null,null,null,null,null,null,null,null," ",null,null,null,null,null,null,null,null,null,null,null,null," ",null,null,null,null,null,null,null,null,null,null," "]
[]
[]
[null,null,null,null,"Jenis 1) ",null,null,null,null,null,null,null,null,null,null,null," ",null,null,null,null,null,null,null,null,null,null,null,null," ",null,null,null,null,null,null,null,null,null,null," "]
[]
[null,null,null,null,"Ket",null,null,null,null,null,null,null,null,null,null,null," ",null,null,null,null,null,null,null,null,null,null,null,null," ",null,null,null,null,null,null,null,null,null,null," "]
[]
[null,null,null,null,null,null,null,null,null,null,null,null,null,null,null,null," ",null,null,null,null,null,null,null,null,null,null,null,null," ",null,null,null,null,null,null,null,null,null,null," "]
[]
[]
[null,null,null,null,"Jenis 1) ",null,null,null,null,null,null,null,null,null,null,null," ",null,null,null,null,null,null,null,null,null,null,null,null," ",null,null,null,null,null,null,null,null,null,null," "]
[]
[null,null,null,null,"Ket",null,null,null,null,null,null,null,null,null,null,null," ",null,null,null,null,null,null,null,null,null,null,null,null," ",null,null,null,null,null,null,null,null,null,null," "]
[]
[null,null,null,null,null,null,null,null,null,null,null,null,null,null,null,null," ",null,null,null,null,null,null,null,null,null,null,null,null," ",null,null,null,null,null,null,null,null,null,null," "]
[]
[]
[null,null,null,null,"Jenis 1) ",null,null,null,null,null,null,null,null,null,null,null," ",null,null,null,null,null,null,null,null,null,null,null,null," ",null,null,null,null,null,null,null,null,null,null," "]
[]
[null,null,null,null,"Ket",null,null,null,null,null,null,null,null,null,null,null," ",null,null,null,null,null,null,null,null,null,null,null,null," ",null,null,null,null,null,null,null,null,null,null," "]
[]
[null,null,null,null,null,null,null,null,null,null,null,null,null,null,null,null," ",null,null,null,null,null,null,null,null,null,null,null,null," ",null,null,null,null,null,null,null,null,null,null," "]
[]
[]
[null,null,"Keterangan:"]
[null,null,"1) Jenis Fasilitas : 1. Rumah Dinas, 2. Biaya hidup, 3. Jaminan Kesehatan, 4. Mobil Dinas, 5. Opsi pembelian saham/surat berharga, 6. Lainnya"]
[]
[null,null,"Lembar ini dapat diperbanyak sesuai kebutuhan"]
[null,{"$f":"Form_Version","v":"Form LHKPN-KPK-Versi 1.4"},null,null,null,null,null,null,null,null,null,null,null,null,null,null,null,null,null,null,null,null,null,null,null,null,null,null,null,null,null,null,null,null,null,null,null,null,null,null,null,"Halaman ke  ii  dari  iv"]
[null,null,1]
[null,null,2]
[null,null,3]
[null,null,4]
[null,null,5]
[null,null,6]

{"sheet":"Lampiran3-SKM","index":16,"n_rows":42,"n_cols":58,"rows_kept":42,"cut":false,"hidden":false,"merged":[[30,50,30,54],[27,3,27,56],[21,3,21,56],[22,3,22,56],[23,3,23,56],[25,3,25,56],[26,3,26,56],[18,3,18,56],[19,3,19,56],[39,44,39,54],[2,3,2,56],[4,3,4,56],[6,12,6,43],[7,12,7,23],[8,12,8,43],[9,12,9,43],[7,25,7,43],[11,3,11,56],[13,3,13,56],[15,3,15,56],[16,3,16,56],[31,43,31,55],[30,44,30,48]]}
[]
[]
[null,null,null,"LAMPIRAN 3 - SURAT KUASA MENGUMUMKAN"]
[]
[null,null,null,"Yang bertanda-tangan di bawah ini :-----------------------------------------------------------------------------------------------------------------------------------------------------------------------------------------------------------"]
[]
[null,null,null,"Nama ",null,null,null,null,null,null,null,":",{"$f":"I!R13&\" \"&I!W13&\" \"&I!AV13","v":"  "}]
[null,null,null,"Tempat/Tanggal Lahir",null,null,null,null,null,null,null,":",null,null,null,null,null,null,null,null,null,null,null,null,"/"]
[null,null,null,"Nomor KTP/NIK",null,null,null,null,null,null,null,":",{"$f":"IF(II!R7=\"\", \"\",II!R7)","v":""}]
[null,null,null,"Alamat",null,null,null,null,null,null,null,":"]
[]
[null,null,null,"(selanjutnya disebut sebagai “Pemberi Kuasa”).----------------------------------------------------------------------------------------------------------------------------------------------------------------------------------------------"]
[]
[null,null,null,"Dengan ini memberi kuasa dengan hak substitusi kepada:---------------------------------------------------------------------------------------------------------------------------------------------------------------------------------"]
[]
[null,null,null,"Pimpinan Komisi  Pemberantasan   Korupsi  (“KPK”),  beralamat  di  Jl. Kuningan Persada Kav. 4,  Jakarta  Selatan,  12950,  Indonesia,  yang  bertindak  baik secara  bersama-sama maupun"]
[null,null,null,"sendiri-sendiri  (selanjutnya disebut “Penerima Kuasa”).------------------------------------------------------------------------------------------------------------------------------------------------------------------------------------"]
[]
[null,null,null,"Untuk  dan  atas  nama  Pemberi  Kuasa  mengumumkan  seluruh  harta  kekayaan  Pemberi Kuasa  yang  dilaporkan  kepada  Penerima  Kuasa dalam media pengumuman yang ditetapkan "]
[null,null,null,"oleh Penerima Kuasa. -------------------------------------------------------------------------------------------------------------------------------------------------------------------------------------------------------------------------------"]
[]
[null,null,null,"Sehubungan dengan itu  Penerima Kuasa  berwenang  menghadap  dan/atau  menghubungi  lembaga  baik  di tingkat pusat maupun daerah dan/ atau pejabat yang berwenang maupun"]
[null,null,null,"pihak-pihak  lain yang terkait, melaksanakan  segala tindakan  yang  dianggap perlu  dan penting  serta  berguna  bagi  Penerima  Kuasa  sesuai   dengan  peraturan perundang-undangan"]
[null,null,null,"yang berlaku.------------------------------------------------------------------------------------------------------------------------------------------------------------------------------------------------------------------------------------------"]
[]
[null,null,null,"Surat Kuasa ini  berlaku  sejak  ditandatangani  kecuali  apabila  Pemberi Kuasa  meninggal  dunia atau setelah 5 (lima) tahun tidak lagi menjabat sebagai Penyelenggara Negara terhitung"]
[null,null,null,"sejak tanggal berakhirnya jabatan atau berada di bawah pengampuan atau setelah mendapatkan persetujuan tertulis mengenai pencabutannya dari Penerima Kuasa.-------------------------------------"]
[]
[]
[]
[null,null,null,null,null,null,null,null,null,null,null,null,null,null,null,null,null,null,null,null,null,null,null,null,null,null,null,null,null,null,null,null,null,null,null,null,null,null,null,null,null,null,null,null,null,null,null,null,null,","]
[null,null,null,null,null,null,null,null,null,null,null,null,null,null,null,null,null,null,null,null,null,null,null,null,null,null,null,null,null,null,null,null,null,null,null,null,null,null,null,null,null,null,null,"Pemberi Kuasa,"]
[]
[]
[]
[]
[]
[]
[]
[null,null,null,"*)    Coret yang tidak perlu",null,null,null,null,null,null,null,null,null,null,null,null,null,null,null,null,null,null,null,null,null,null,null,null,null,null,null,null,null,null,null,null,null,null,null,null,null,null,null,"(",{"$f":"I!R13&\" \"&I!W13&\" \"&I!AV13","v":"  "},null,null,null,null,null,null,null,null,null,null,")"]
[null,null,null,"       Redaksi surat kuasa ini tidak dapat diubah"]
[null,{"$f":"Form_Version","v":"Form LHKPN-KPK-Versi 1.4"},null,null,null,null,null,null,null,null,null,null,null,null,null,null,null,null,null,null,null,null,null,null,null,null,null,null,null,null,null,null,null,null,null,null,null,null,null,null,null,null,null,null,null,null,null,null,null,null,null,null,null,null,null,null,null,"Halaman ke  iii  dari iv"]

{"sheet":"Lampiran4-SKB","index":17,"n_rows":50,"n_cols":60,"rows_kept":50,"cut":false,"hidden":false,"merged":[[47,44,47,54],[7,27,7,44],[34,3,34,57],[35,3,35,57],[36,3,36,57],[39,43,39,55],[38,44,38,48],[38,50,38,54],[26,6,26,57],[27,6,27,57],[28,6,28,57],[30,3,30,57],[31,3,31,57],[32,3,32,57],[20,5,20,57],[21,5,21,57],[22,6,22,57],[23,6,23,57],[24,6,24,57],[25,5,25,57],[11,3,11,57],[13,3,13,57],[15,3,15,57],[16,3,16,57],[17,3,17,57],[19,3,19,57],[9,14,9,45],[2,3,2,57],[4,3,4,57],[6,14,6,45],[7,14,7,25],[8,14,8,45]]}
[]
[]
[null,null,null,"LAMPIRAN 4 - SURAT KUASA"]
[]
[null,null,null,"Yang bertanda-tangan di bawah ini :-------------------------------------------------------------------------------------------------------------------------------------------------------------------------------------------------------------------"]
[]
[null,null,null,"Nama (sesuai dengan KTP)",null,null,null,null,null,null,null,null,null,":",{"$f":"'Lampiran3-SKM'!M7","v":"  "}]
[null,null,null,"Tempat/Tanggal Lahir",null,null,null,null,null,null,null,null,null,":",null,null,null,null,null,null,null,null,null,null,null,null,"/"]
[null,null,null,"Nomor KTP/NIK",null,null,null,null,null,null,null,null,null,":"]
[null,null,null,"Alamat",null,null,null,null,null,null,null,null,null,":"]
[]
[null,null,null,"(selanjutnya disebut sebagai “Pemberi Kuasa”).------------------------------------------------------------------------------------------------------------------------------------------------------------------------------------------------------"]
[]
[null,null,null,"Dengan ini memberi kuasa dengan hak substitusi kepada:-----------------------------------------------------------------------------------------------------------------------------------------------------------------------------------------"]
[]
[null,null,null,"Pimpinan  Komisi   Pemberantasan   Korupsi  (“KPK”),  beralamat  di  Jl. Kuningan Persada Kav. 4,  Jakarta  Selatan,  12950,  Indonesia, yang  bertindak  baik secara  bersama-sama maupun "]
[null,null,null,"sendiri-sendiri  (selanjutnya disebut “Penerima Kuasa”).--------------------------------------------------------------------------------------------------------------------------------------------------------------------------------------------------------------"]
[null,null,null,"-------------------------------------------------------------------------------------------------------------------------------- K H U S U S ----------------------------------------------------------------------------------------------------------------------------"]
[]
[null,null,null,"Untuk dan atas nama Pemberi Kuasa:------------------------------------------------------------------------------------------------------------------------------------------------------------------------------------------------------------------------------------------"]
[null,null,null,null,"1.","Mengetahui, memperoleh, memeriksa dan mengklarifikasi termasuk namun tidak terbatas pada keberadaan dan kebenaran data dan/atau informasi keuangan Pemberi Kuasa yang"]
[null,null,null,null,null,"berada pada:-----------------------------------------------------------------------------------------------------------------------------------------------------------------------------------------------------------------------------------"]
[null,null,null,null,null,"a.","Lembaga keuangan bank maupun lembaga keuangan non bank;"]
[null,null,null,null,null,"b.","Lembaga/ pihak/ profesi/ instansi pemerintah yang terkait efek;"]
[null,null,null,null,null,"c.","Badan usaha dan/ atau perusahaan."]
[null,null,null,null,"2.","Mengetahui dan memperoleh laporan mengenai data keuangan Pemberi Kuasa yang berada namun tidak terbatas pada:----------------------------------------------------------------------------------------"]
[null,null,null,null,null,"a.","Lembaga keuangan bank maupun lembaga keuangan non bank;"]
[null,null,null,null,null,"b.","Lembaga/ pihak/ profesi/ instansi pemerintah yang terkait efek;"]
[null,null,null,null,null,"c.","Badan usaha dan/ atau perusahaan."]
[]
[null,null,null,"Sehubungan  dengan  itu, Penerima  Kuasa   berwenang  menghadap  kepada  semua  lembaga  keuangan  bank maupun  lembaga  keuangan  non bank  dan/ atau  pejabat-pejabat   yang"]
[null,null,null,"berwenang    maupun  pihak-pihak   terkait  untuk   mendapatkan   keterangan-keterangan,   dokumen-dokumen  dan/ atau  laporan   setiap   akhir   tahun  (baik  asli  maupun  fotocopy)"]
[null,null,null,"Pemberi Kuasa, melakukan segala tindakan hukum yang dianggap perlu dan penting serta berguna bagi Pemberi Kuasa sesuai dengan peraturan perundang-undangan yang berlaku.-----------------------------------------------"]
[]
[null,null,null,"Surat Kuasa ini  berlaku  sejak  ditandatangani  kecuali  apabila  Pemberi Kuasa  meninggal  dunia atau setelah 5 (lima) tahun tidak lagi menjabat sebagai Penyelenggara Negara terhitung"]
[null,null,null,"sejak tanggal berakhirnya jabatan atau berada di bawah pengampuan atau setelah mendapatkan persetujuan tertulis mengenai pencabutannya dari Penerima Kuasa.--------------------------------"]
[]
[]
[null,null,null,null,null,null,null,null,null,null,null,null,null,null,null,null,null,null,null,null,null,null,null,null,null,null,null,null,null,null,null,null,null,null,null,null,null,null,null,null,null,null,null,null,null,null,null,null,null,","]
[null,null,null,null,null,null,null,null,null,null,null,null,null,null,null,null,null,null,null,null,null,null,null,null,null,null,null,null,null,null,null,null,null,null,null,null,null,null,null,null,null,null,null,"Pemberi Kuasa,"]
[]
[]
[]
[]
[]
[]
[null,null,null,"*) Lembaran ini dapat difotokopi dan diperbanyak sesuai dengan kebutuhan"]
[null,null,null,"**)  Coret yang tidak perlu",null,null,null,null,null,null,null,null,null,null,null,null,null,null,null,null,null,null,null,null,null,null,null,null,null,null,null,null,null,null,null,null,null,null,null,null,null,null,null,"(",{"$f":"IF(O7=\"\",\"\",O7)","v":"  "},null,null,null,null,null,null,null,null,null,null,")"]
[null,null,null,"       Redaksi surat kuasa ini tidak dapat diubah"]
[null,{"$f":"Form_Version","v":"Form LHKPN-KPK-Versi 1.4"},null,null,null,null,null,null,null,null,null,null,null,null,null,null,null,null,null,null,null,null,null,null,null,null,null,null,null,null,null,null,null,null,null,null,null,null,null,null,null,null,null,null,null,null,null,null,null,null,null,null,null,null,null,null,null,null,null,"Halaman ke  iv  dari  iv"]

{"sheet":"Lembar Penyerahan","index":18,"n_rows":47,"n_cols":47,"rows_kept":47,"cut":false,"hidden":false,"merged":[[3,9,3,18],[3,33,3,43],[4,9,4,18],[4,33,4,43],[5,9,5,18],[5,33,5,43],[6,9,6,18],[6,33,6,43],[9,2,9,21],[9,26,9,46],[10,2,10,21],[10,26,10,46],[12,2,12,21],[12,26,12,46],[18,9,18,20],[18,34,18,45],[25,9,25,10],[25,12,25,13],[25,15,25,18],[25,34,25,35],[25,37,25,38],[25,40,25,43],[29,38,29,45],[29,3,29,11],[29,27,29,36],[31,4,31,11],[31,14,31,20],[31,28,31,35],[31,39,31,45],[26,38,26,40],[26,13,26,15],[26,17,26,20],[14,9,14,20],[16,9,16,20],[20,9,20,20],[14,34,14,45],[16,34,16,45],[20,34,20,45],[26,41,26,44],[32,6,32,11],[32,16,32,20],[34,6,34,11],[34,16,36,20],[38,2,39,11],[38,16,39,20],[26,3,26,5],[26,7,26,11],[26,27,26,29],[26,31,26,36],[29,13,29,20],[38,41,38,45],[32,30,32,35],[34,30,34,35],[32,41,32,45],[34,41,36,45],[38,26,39,35]]}
[]
[null,null,null,null,null,null,null,null,null,null,null,null,null,null,null,null,null,null,null,null,"Lembar untuk KPK",null,null,null,null,null,null,null,null,null,null,null,null,null,null,null,null,null,null,null,null,null,null,null,null,"Lembar untuk Penyelenggara Negara"]
[]
[null,null,null,null,null,null,null,null,null,"KOMISI PEMBERANTASAN KORUPSI",null,null,null,null,null,null,null,null,null,null,null,null,null,null,null,null,null,null,null,null,null,null,null,"KOMISI PEMBERANTASAN KORUPSI"]
[null,null,null,null,null,null,null,null,null,"REPUBLIK INDONESIA",null,null,null,null,null,null,null,null,null,null,null,null,null,null,null,null,null,null,null,null,null,null,null,"REPUBLIK INDONESIA"]
[null,null,null,null,null,null,null,null,null,"Jl. Kuningan Persada Kav. 4, Setiabudi",null,null,null,null,null,null,null,null,null,null,null,null,null,null,null,null,null,null,null,null,null,null,null,{"$f":"J6","v":"Jl. Kuningan Persada Kav. 4, Setiabudi"}]
[null,null,null,null,null,null,null,null,null,"Jakarta 12950",null,null,null,null,null,null,null,null,null,null,null,null,null,null,null,null,null,null,null,null,null,null,null,{"$f":"J7","v":"Jakarta 12950"}]
[]
[]
[null,null,"LEMBAR PENYERAHAN FORMULIR",null,null,null,null,null,null,null,null,null,null,null,null,null,null,null,null,null,null,null,null,null,null,null,"LEMBAR PENYERAHAN FORMULIR"]
[null,null,"LAPORAN HARTA KEKAYAAN PENYELENGGARA NEGARA",null,null,null,null,null,null,null,null,null,null,null,null,null,null,null,null,null,null,null,null,null,null,null,"LAPORAN HARTA KEKAYAAN PENYELENGGARA NEGARA"]
[]
[]
[]
[null,null,"Atas Nama",null,null,null,null,null,":",{"$f":"IF(I!W13=\"\",\"\",I!W13)","v":""},null,null,null,null,null,null,null,null,null,null,null,null,null,null,null,null,"Atas Nama",null,null,null,null,null,":",null,{"$f":"IF(ISBLANK(J15),\"\",J15)","v":""}]
[]
[null,null,"Jabatan",null,null,null,null,null,":",{"$f":"IF(I!R15=\"\",\"\",I!R15)","v":""},null,null,null,null,null,null,null,null,null,null,null,null,null,null,null,null,"Jabatan",null,null,null,null,null,":",null,{"$f":"IF(ISBLANK(J17),\"\",J17)","v":""}]
[]
[null,null,"Bidang",null,null,null,null,null,":",null,null,null,null,null,null,null,null,null,null,null,null,null,null,null,null,null,"Bidang",null,null,null,null,null,":",null,{"$f":"IF(ISBLANK(J19),\"\",J19)","v":""}]
[]
[null,null,"Lembaga",null,null,null,null,null,":",{"$f":"IF(I!AM17=\"\",\"\",I!AM17)","v":""},null,null,null,null,null,null,null,null,null,null,null,null,null,null,null,null,"Lembaga",null,null,null,null,null,":",null,{"$f":"IF(ISBLANK(J21),\"\",J21)","v":""}]
[]
[null,null,"Tahun Pelaporan",null,null,null,null,null,":",{"$f":"IF(IF(I!BJ7=2,I!BB9,I!AA9)=0,\"\",IF(I!BJ7=2,I!BB9,TEXT(I!AA9,\"YYY\")))","v":""},null,null,null,null," ",null,null,null,null,null,null,null,null,null,null,null,"Tahun Pelaporan",null,null,null,null,null,":",null,{"$f":"IF(ISBLANK(J23),\"\",J23)","v":""},{"$f":"IF(ISBLANK(K23),\"\",K23)","v":""},{"$f":"IF(ISBLANK(L23),\"\",L23)","v":""},{"$f":"IF(ISBLANK(M23),\"\",M23)","v":""},null," "]
[]
[]
[null,null,null,null,null,null,null,null,null," ",null,null," ",null,null," ",null,null,null,null,null,null,null,null,null,null,null,null,null,null,null,null,null,null," ",null,null," ",null,null," "]
[null,null,null,null,null,null,null,null,null,null,null,null,null,null,null,null,null,null,null,null,null,null,null,null,null,null,null,{"$f":"IF(ISBLANK(D27),\"\",D27)","v":""},null,null,null,{"$f":"IF(ISBLANK(H27),\"\",H27)","v":""},null,null,null,null,null,null,{"$f":"IF(ISBLANK(N27),\"\",N27)","v":""},null,null,{"$f":"IF(ISBLANK(R27),\"\",R27)","v":""}]
[null,null,null,"................... ,  .......................................",null,null,null,null,null,null,null,null,null,"........................... ,  .....................................",null,null,null,null,null,null,null,null,null,null,null,null,null,"................... ,  .................................",null,null,null,null,null,null,null,null,null,null,"........................ ,  .................................."]
[]
[null,null,null,"Yang menerima,",null,null,null,null,null,null,null,null,null,"* Yang menyerahkan,",null,null,null,null,null,null,null,null,null,null,null,null,null,"Yang menerima,",null,null,null,null,null,null,null,null,null,null,"* Yang menyerahkan,"]
[]
[null,null,null,"(",null,null,null,null,null,null,null,null,")","(",null,null,null,null,null,null,null,")",null,null,null,null,null,"(",{"$f":"IF(ISBLANK(E32),\"\",E32)","v":""},null,null,null,null,null,null,null,")",null,"(",{"$f":"IF(ISBLANK(O32),\"\",O32)","v":""},null,null,null,null,null,null,")"]
[null,null,null,"Jabatan :",null,null,null,null,null,null,null,null,null,"Jabatan",null,":",null,null,null,null,null,null,null,null,null,null,null,"Jabatan :",null,null,{"$f":"IF(ISBLANK(G33),\"\",G33)","v":""},null,null,null,null,null,null,null,"Jabatan",null,":",{"$f":"IF(Q33=0,\"\",Q33)","v":""}]
[null,null,null,null,null,null,"........................................",null,null,null,null,null,null,null,null,null,"........................................",null,null,null,null,null,null,null,null,null,null,null,null,null,".......................................",null,null,null,null,null,null,null,null,null,null,"........................................"]
[null,null,null,null,null,null,null,null,null,null,null,null,null,"Alamat",null,":",null,null,null,null,null,null,null,null,null,null,null,null,null,null,{"$f":"IF(ISBLANK(G35),\"\",G35)","v":""},null,null,null,null,null,null,null,"Alamat",null,":",{"$f":"IF(Q35=0,\"\",Q35)","v":""}]
[null,null,null,null,null,null,"........................................",null,null,null,null,null,null,null,null,null,null,null,null,null,null,null,null,null,null,null,null,null,null,null,".......................................",null,null,null,null,null,null,null,null,null,null,""]
[null,null,null,null,null,null,null,null,null,null,null,null,null,null,null,null,null,null,null,null,null,null,null,null,null,null,null,null,null,null,null,null,null,null,null,null,null,null,null,null,null,""]
[null,null,null,null,null,null,null,null,null,null,null,null,null,null,null,null,"........................................",null,null,null,null,null,null,null,null,null,null,null,null,null,null,null,null,null,null,null,null,null,null,null,null,"........................................"]
[null,null,"*) Tidak perlu ditandatangani apabila LHKPN disampaikan melalui email elhkpn@kpk.go.id",null,null,null,null,null,null,null,null,null,null,"No. Telp.",null,":",null,null,null,null,null,null,null,null,null,null,"*) Tidak perlu ditandatangani apabila LHKPN disampaikan melalui email elhkpn@kpk.go.id",null,null,null,null,null,null,null,null,null,null,null,"No. Telp.",null,":",{"$f":"IF(Q39=0,\"\",Q39)","v":""}]
[]
[null,null,null,null,null,null,null,null,null,null,null,null,null,null,null,null,"........................................",null,null,null,null,null,null,null,null,null,null,null,null,null,null,null,null,null,null,null,null,null,null,null,null,"........................................"]
[null,null,null,null,null,null,null,null,null,null,null,null,null,null,null,{"$f":"Form_Version","v":"Form LHKPN-KPK-Versi 1.4"},null,null,null,null,null,null,null,null,null,null,null,null,null,null,null,null,null,null,null,null,null,null,null,null,{"$f":"Form_Version","v":"Form LHKPN-KPK-Versi 1.4"}]
[null,"EKSEKUTIF"]
[null,"LEGISLATIF"]
[null,"YUDIKATIF"]
[null,"BUMN"]
[null,"BUMD"]

{"sheet":"DATA","index":19,"n_rows":195,"n_cols":19,"rows_kept":195,"cut":false,"hidden":true,"merged":[]}
["Keluarga","Jenis Kelamin",null,"Mata Uang",null,null,null,null,"Tahun Pelaporan",null,"Bulan",null,"Hari",null,"Periodik2",null,"Khusus1"]
[]
["Suami","Pria",null,"Indonesia","Rupiah","IDR",{"$f":"CONCATENATE(D3,\"  (\",F3,\")\")","v":"Indonesia  (IDR)"},null,null,null,null,null,null,null,null,null,null,null,"Indonesia  (IDR)"]
["Istri","Wanita",null,"Amerika Serikat","Dollar","USD","Amerika Serikat  (USD)",null,2026,null,1,null,1,null,2026,null,"Hari",null,"Amerika Serikat  (USD)"]
["Anak Tanggungan",null,null,"Singapura","Dollar","SGD","Singapura  (SGD)",null,2025,null,2,null,2,null,2025,null,"Bulan",null,"Singapura  (SGD)"]
["Anak Bukan Tanggungan",null,null,"Uni Emirat Arab","Dirham","AED","Uni Emirat Arab  (AED)",null,2024,null,3,null,3,null,2024,null,"Periodik2",null,"Uni Emirat Arab  (AED)"]
["Lainnya",null,null,"Afganistan","Afghani","AFA","Afganistan  (AFA)",null,2023,null,4,null,4,null,2023,null,null,null,"Afganistan  (AFA)"]
[null,null,null,"Albania","Leke","ALL","Albania  (ALL)",null,2022,null,5,null,5,null,2022,null,null,null,"Albania  (ALL)"]
["Keluarga",null,null,"Armenia","Dram","AMD","Armenia  (AMD)",null,2021,null,6,null,6,null,2021,null,null,null,"Armenia  (AMD)"]
[null,null,null,"Angola","Kwanza","AOA","Angola  (AOA)",null,2020,null,7,null,7,null,2020,null,null,null,"Angola  (AOA)"]
["Istri",null,null,"Argentina","Peso","ARS","Argentina  (ARS)",null,2019,null,8,null,8,null,2019,null,null,null,"Argentina  (ARS)"]
["Anak Tanggungan",null,null,"Australia","Dollar","AUD","Australia  (AUD)",null,2018,null,9,null,9,null,2018,null,null,null,"Australia  (AUD)"]
["Anak Bukan Tanggungan",null,null,"Kiribati","Dollar Australia","AUD","Kiribati  (AUD)",null,2017,null,10,null,10,null,2017,null,null,null,"Kiribati  (AUD)"]
["Lainnya",null,null,"Nauru","Dollar Australia","AUD","Nauru  (AUD)",null,2016,null,11,null,11,null,2016,null,null,null,"Nauru  (AUD)"]
[null,null,null,"Tuvalu","Dollar Australia","AUD","Tuvalu  (AUD)",null,2015,null,12,null,12,null,null,null,null,null,"Tuvalu  (AUD)"]
[null,null,null,"Azerbaijan","Manat","AZN","Azerbaijan  (AZN)",null,2014,null,null,null,13,null,null,null,null,null,"Azerbaijan  (AZN)"]
[null,null,null,"Bosnia dan Herzegovina","Mark","BAM","Bosnia dan Herzegovina  (BAM)",null,2013,null,null,null,14,null,null,null,null,null,"Bosnia dan Herzegovina  (BAM)"]
[null,null,null,"Barbados","Dollar","BBD","Barbados  (BBD)",null,2012,null,null,null,15,null,null,null,null,null,"Barbados  (BBD)"]
[null,null,null,"Bangladesh","Taka","BDT","Bangladesh  (BDT)",null,2011,null,null,null,16,null,null,null,null,null,"Bangladesh  (BDT)"]
[null,null,null,"Bulgaria","Lev","BGN","Bulgaria  (BGN)",null,2010,null,null,null,17,null,null,null,null,null,"Bulgaria  (BGN)"]
[null,null,null,"Bahrain","Dinar","BHD","Bahrain  (BHD)",null,2009,null,null,null,18,null,null,null,null,null,"Bahrain  (BHD)"]
[null,null,null,"Burundi","Franc","BIF","Burundi  (BIF)",null,2008,null,null,null,19,null,null,null,null,null,"Burundi  (BIF)"]
[null,null,null,"Brunei Darussalam","Dollar","BND",{"$f":"CONCATENATE(D23,\"  (\",F23,\")\")","v":"Brunei Darussalam  (BND)"},null,2007,null,null,null,20,null,null,null,null,null,"Brunei Darussalam  (BND)"]
[null,null,null,"Bolivia","Boliviano","BOB",{"$f":"CONCATENATE(D24,\"  (\",F24,\")\")","v":"Bolivia  (BOB)"},null,2006,null,null,null,21,null,null,null,null,null,"Bolivia  (BOB)"]
[null,null,null,"Brasil","Real","BRL","Brasil  (BRL)",null,2005,null,null,null,22,null,null,null,null,null,"Brasil  (BRL)"]
[null,null,null,"Bahama","Dollar","BSD","Bahama  (BSD)",null,2004,null,null,null,23,null,null,null,null,null,"Bahama  (BSD)"]
[null,null,null,"Bhutan","Ngultrum","BTN","Bhutan  (BTN)",null,2003,null,null,null,24,null,null,null,null,null,"Bhutan  (BTN)"]
[null,null,null,"Botswana","Pula","BWP","Botswana  (BWP)",null,2002,null,null,null,25,null,null,null,null,null,"Botswana  (BWP)"]
[null,null,null,"Belarus","Ruble","BYR","Belarus  (BYR)",null,2001,null,null,null,26,null,null,null,null,null,"Belarus  (BYR)"]
[null,null,null,"Belize","Dollar","BZD","Belize  (BZD)",null,2000,null,null,null,27,null,null,null,null,null,"Belize  (BZD)"]
[null,null,null,"Kanada","Dollar","CAD","Kanada  (CAD)",null,1999,null,null,null,28,null,null,null,null,null,"Kanada  (CAD)"]
[null,null,null,"Republik Demokratik Kongo","Franc","CFD","Republik Demokratik Kongo  (CFD)",null,1998,null,null,null,29,null,null,null,null,null,"Republik Demokratik Kongo  (CFD)"]
[null,null,null,"Liechtenstein","Franc","CHF","Liechtenstein  (CHF)",null,1997,null,null,null,30,null,null,null,null,null,"Liechtenstein  (CHF)"]
[null,null,null,"Swiss","Franc","CHF","Swiss  (CHF)",null,1996,null,null,null,31,null,null,null,null,null,"Swiss  (CHF)"]
[null,null,null,"Chili","Peso","CLP","Chili  (CLP)",null,1995,null,null,null,null,null,null,null,null,null,"Chili  (CLP)"]
[null,null,null,"Kolombia","Peso","COP","Kolombia  (COP)",null,1994,null,null,null,null,null,null,null,null,null,"Kolombia  (COP)"]
[null,null,null,"Kosta Rika","Colone","CRC","Kosta Rika  (CRC)",null,1993,null,null,null,null,null,null,null,null,null,"Kosta Rika  (CRC)"]
[null,null,null,"Kuba","Peso","CUP","Kuba  (CUP)",null,1992,null,null,null,null,null,null,null,null,null,"Kuba  (CUP)"]
[null,null,null,"Tanjung Verde","Escudo","CVE","Tanjung Verde  (CVE)",null,1991,null,null,null,null,null,null,null,null,null,"Tanjung Verde  (CVE)"]
[null,null,null,"Ceko (Republik Ceko)","Koruny","CZK","Ceko (Republik Ceko)  (CZK)",null,1990,null,null,null,null,null,null,null,null,null,"Ceko (Republik Ceko)  (CZK)"]
[null,null,null,"Djibouti","Franc","DJF","Djibouti  (DJF)",null,1989,null,null,null,null,null,null,null,null,null,"Djibouti  (DJF)"]
[null,null,null,"Denmark","Krone","DKK","Denmark  (DKK)",null,1988,null,null,null,null,null,null,null,null,null,"Denmark  (DKK)"]
[null,null,null,"Republik Dominika","Peso","DOP","Republik Dominika  (DOP)",null,1987,null,null,null,null,null,null,null,null,null,"Republik Dominika  (DOP)"]
[null,null,null,"Aljazair","Dinar","DZD","Aljazair  (DZD)",null,1986,null,null,null,null,null,null,null,null,null,"Aljazair  (DZD)"]
[null,null,null,"Estonia","Kroon","EEK","Estonia  (EEK)",null,1985,null,null,null,null,null,null,null,null,null,"Estonia  (EEK)"]
[null,null,null,"Mesir","Pound","EGP","Mesir  (EGP)",null,1984,null,null,null,null,null,null,null,null,null,"Mesir  (EGP)"]
[null,null,null,"Eritrea","Nakfa","ERN","Eritrea  (ERN)",null,1983,null,null,null,null,null,null,null,null,null,"Eritrea  (ERN)"]
[null,null,null,"Ethiopia","Birr","ETB","Ethiopia  (ETB)",null,1982,null,null,null,null,null,null,null,null,null,"Ethiopia  (ETB)"]
[null,null,null,"Andorra","Euro","EUR","Andorra  (EUR)",null,1981,null,null,null,null,null,null,null,null,null,"Andorra  (EUR)"]
[null,null,null,"Austria","Euro","EUR","Austria  (EUR)",null,1980,null,null,null,null,null,null,null,null,null,"Austria  (EUR)"]
[null,null,null,"Belanda","Euro","EUR","Belanda  (EUR)",null,1979,null,null,null,null,null,null,null,null,null,"Belanda  (EUR)"]
[null,null,null,"Belgia","Euro","EUR","Belgia  (EUR)",null,1978,null,null,null,null,null,null,null,null,null,"Belgia  (EUR)"]
[null,null,null,"Finlandia","Euro","EUR","Finlandia  (EUR)",null,1977,null,null,null,null,null,null,null,null,null,"Finlandia  (EUR)"]
[null,null,null,"Irlandia","Euro","EUR","Irlandia  (EUR)",null,1976,null,null,null,null,null,null,null,null,null,"Irlandia  (EUR)"]
[null,null,null,"Italia","Euro","EUR","Italia  (EUR)",null,1975,null,null,null,null,null,null,null,null,null,"Italia  (EUR)"]
[null,null,null,"Jerman","Euro","EUR","Jerman  (EUR)",null,1974,null,null,null,null,null,null,null,null,null,"Jerman  (EUR)"]
[null,null,null,"Luksemburg","Euro","EUR","Luksemburg  (EUR)",null,1973,null,null,null,null,null,null,null,null,null,"Luksemburg  (EUR)"]
[null,null,null,"Malta","Euro","EUR","Malta  (EUR)",null,1972,null,null,null,null,null,null,null,null,null,"Malta  (EUR)"]
[null,null,null,"Monako","Euro","EUR","Monako  (EUR)",null,1971,null,null,null,null,null,null,null,null,null,"Monako  (EUR)"]
[null,null,null,"Montenegro","Euro","EUR","Montenegro  (EUR)",null,1970,null,null,null,null,null,null,null,null,null,"Montenegro  (EUR)"]
[null,null,null,"Perancis","Euro","EUR","Perancis  (EUR)",null,1969,null,null,null,null,null,null,null,null,null,"Perancis  (EUR)"]
[null,null,null,"Portugal","Euro","EUR","Portugal  (EUR)",null,1968,null,null,null,null,null,null,null,null,null,"Portugal  (EUR)"]
[null,null,null,"San Marino","Euro","EUR","San Marino  (EUR)",null,1967,null,null,null,null,null,null,null,null,null,"San Marino  (EUR)"]
[null,null,null,"Siprus","Euro","EUR","Siprus  (EUR)",null,1966,null,null,null,null,null,null,null,null,null,"Siprus  (EUR)"]
[null,null,null,"Slovenia","Euro","EUR","Slovenia  (EUR)",null,1965,null,null,null,null,null,null,null,null,null,"Slovenia  (EUR)"]
[null,null,null,"Slowakia","Euro","EUR","Slowakia  (EUR)",null,1964,null,null,null,null,null,null,null,null,null,"Slowakia  (EUR)"]
[null,null,null,"Spanyol","Euro","EUR","Spanyol  (EUR)",null,1963,null,null,null,null,null,null,null,null,null,"Spanyol  (EUR)"]
[null,null,null,"Yunani","Euro","EUR","Yunani  (EUR)",null,1962,null,null,null,null,null,null,null,null,null,"Yunani  (EUR)"]
[null,null,null,"Fiji","Dollar","FJD","Fiji  (FJD)",null,1961,null,null,null,null,null,null,null,null,null,"Fiji  (FJD)"]
[null,null,null,"Britania Raya","Pound","GBP","Britania Raya  (GBP)",null,1960,null,null,null,null,null,null,null,null,null,"Britania Raya  (GBP)"]
[null,null,null,"Georgia","Lari","GEL","Georgia  (GEL)",null,1959,null,null,null,null,null,null,null,null,null,"Georgia  (GEL)"]
[null,null,null,"Ghana","Cedi","GHC","Ghana  (GHC)",null,1958,null,null,null,null,null,null,null,null,null,"Ghana  (GHC)"]
[null,null,null,"Gambia","Dalasi","GMD","Gambia  (GMD)",null,1957,null,null,null,null,null,null,null,null,null,"Gambia  (GMD)"]
[null,null,null,"Guinea","Franc","GNF","Guinea  (GNF)",null,1956,null,null,null,null,null,null,null,null,null,"Guinea  (GNF)"]
[null,null,null,"Guatemala","Quetzal","GTQ","Guatemala  (GTQ)",null,1955,null,null,null,null,null,null,null,null,null,"Guatemala  (GTQ)"]
[null,null,null,"Guyana","Dollar","GYD","Guyana  (GYD)",null,1954,null,null,null,null,null,null,null,null,null,"Guyana  (GYD)"]
[null,null,null,"Honduras","Lempira","HNL","Honduras  (HNL)",null,1953,null,null,null,null,null,null,null,null,null,"Honduras  (HNL)"]
[null,null,null,"Kroasia","Kuna","HRK","Kroasia  (HRK)",null,1952,null,null,null,null,null,null,null,null,null,"Kroasia  (HRK)"]
[null,null,null,"Haiti","Gourde","HTG","Haiti  (HTG)",null,1951,null,null,null,null,null,null,null,null,null,"Haiti  (HTG)"]
[null,null,null,"Hongaria","Forint","HUF","Hongaria  (HUF)",null,1950,null,null,null,null,null,null,null,null,null,"Hongaria  (HUF)"]
[null,null,null,"Israel","Shekel","ILS","Israel  (ILS)",null,1949,null,null,null,null,null,null,null,null,null,"Israel  (ILS)"]
[null,null,null,"India","Rupee","INR","India  (INR)",null,1948,null,null,null,null,null,null,null,null,null,"India  (INR)"]
[null,null,null,"Irak","Dinar","IQD","Irak  (IQD)",null,1947,null,null,null,null,null,null,null,null,null,"Irak  (IQD)"]
[null,null,null,"Iran","Rial","IRR","Iran  (IRR)",null,1946,null,null,null,null,null,null,null,null,null,"Iran  (IRR)"]
[null,null,null,"Islandia","Kronu","ISK","Islandia  (ISK)",null,1945,null,null,null,null,null,null,null,null,null,"Islandia  (ISK)"]
[null,null,null,"Jamaika","Dollar","JMD","Jamaika  (JMD)",null,1944,null,null,null,null,null,null,null,null,null,"Jamaika  (JMD)"]
[null,null,null,"Yordania","Dinar","JOD","Yordania  (JOD)",null,1943,null,null,null,null,null,null,null,null,null,"Yordania  (JOD)"]
[null,null,null,"Jepang","Yen","JPY",{"$f":"CONCATENATE(D88,\"  (\",F88,\")\")","v":"Jepang  (JPY)"},null,1942,null,null,null,null,null,null,null,null,null,"Jepang  (JPY)"]
[null,null,null,"Kuwait","Dinar","KD","Kuwait  (KD)",null,1941,null,null,null,null,null,null,null,null,null,"Kuwait  (KD)"]
[null,null,null,"Kenya","Shilling","KES","Kenya  (KES)",null,1940,null,null,null,null,null,null,null,null,null,"Kenya  (KES)"]
[null,null,null,"Kirgizstan","Som","KGS","Kirgizstan  (KGS)",null,1939,null,null,null,null,null,null,null,null,null,"Kirgizstan  (KGS)"]
[null,null,null,"Kamboja","Riel","KHR","Kamboja  (KHR)",null,1938,null,null,null,null,null,null,null,null,null,"Kamboja  (KHR)"]
[null,null,null,"Komoro","Franc","KMF","Komoro  (KMF)",null,1937,null,null,null,null,null,null,null,null,null,"Komoro  (KMF)"]
[null,null,null,"Korea Utara","Won","KPW","Korea Utara  (KPW)",null,1936,null,null,null,null,null,null,null,null,null,"Korea Utara  (KPW)"]
[null,null,null,"Korea Selatan","Won","KRW","Korea Selatan  (KRW)",null,1935,null,null,null,null,null,null,null,null,null,"Korea Selatan  (KRW)"]
[null,null,null,"Kazakhstan","Tenge","KZT","Kazakhstan  (KZT)",null,1934,null,null,null,null,null,null,null,null,null,"Kazakhstan  (KZT)"]
[null,null,null,"Laos","Kip","LAK","Laos  (LAK)",null,1933,null,null,null,null,null,null,null,null,null,"Laos  (LAK)"]
[null,null,null,"Lebanon","Pound","LBP","Lebanon  (LBP)",null,1932,null,null,null,null,null,null,null,null,null,"Lebanon  (LBP)"]
[null,null,null,"Sri Lanka","Rupee","LKR","Sri Lanka  (LKR)",null,1931,null,null,null,null,null,null,null,null,null,"Sri Lanka  (LKR)"]
[null,null,null,"Liberia","Dollar","LRD","Liberia  (LRD)",null,1930,null,null,null,null,null,null,null,null,null,"Liberia  (LRD)"]
[null,null,null,"Lesotho","Maloti","LSL","Lesotho  (LSL)",null,null,null,null,null,null,null,null,null,null,null,"Lesotho  (LSL)"]
[null,null,null,"Lituania","Litai","LTL","Lituania  (LTL)",null,null,null,null,null,null,null,null,null,null,null,"Lituania  (LTL)"]
[null,null,null,"Latvia","Lati","LVL","Latvia  (LVL)",null,null,null,null,null,null,null,null,null,null,null,"Latvia  (LVL)"]
[null,null,null,"Libya","Dinar","LYD","Libya  (LYD)",null,null,null,null,null,null,null,null,null,null,null,"Libya  (LYD)"]
[null,null,null,"Maroko","Dirham","MAD","Maroko  (MAD)",null,null,null,null,null,null,null,null,null,null,null,"Maroko  (MAD)"]
[null,null,null,"Moldova","Lei","MDL","Moldova  (MDL)",null,null,null,null,null,null,null,null,null,null,null,"Moldova  (MDL)"]
[null,null,null,"Madagaskar","Ariary","MGA","Madagaskar  (MGA)",null,null,null,null,null,null,null,null,null,null,null,"Madagaskar  (MGA)"]
[null,null,null,"Makedonia","Denar","MKD","Makedonia  (MKD)",null,null,null,null,null,null,null,null,null,null,null,"Makedonia  (MKD)"]
[null,null,null,"Myanmar","Kyat","MMK","Myanmar  (MMK)",null,null,null,null,null,null,null,null,null,null,null,"Myanmar  (MMK)"]
[null,null,null,"Mongolia","Tugrik","MNT","Mongolia  (MNT)",null,null,null,null,null,null,null,null,null,null,null,"Mongolia  (MNT)"]
[null,null,null,"Mauritania","Ouguiya","MRO","Mauritania  (MRO)",null,null,null,null,null,null,null,null,null,null,null,"Mauritania  (MRO)"]
[null,null,null,"Mauritius","Rupee","MUR","Mauritius  (MUR)",null,null,null,null,null,null,null,null,null,null,null,"Mauritius  (MUR)"]
[null,null,null,"Maladewa","Rufiyaa","MVR","Maladewa  (MVR)",null,null,null,null,null,null,null,null,null,null,null,"Maladewa  (MVR)"]
[null,null,null,"Malawi","Kwacha","MWK","Malawi  (MWK)",null,null,null,null,null,null,null,null,null,null,null,"Malawi  (MWK)"]
[null,null,null,"Meksiko","Peso","MXN","Meksiko  (MXN)",null,null,null,null,null,null,null,null,null,null,null,"Meksiko  (MXN)"]
[null,null,null,"Malaysia","Ringgit","MYR","Malaysia  (MYR)",null,null,null,null,null,null,null,null,null,null,null,"Malaysia  (MYR)"]
[null,null,null,"Mozambik","Meticai","MZM","Mozambik  (MZM)",null,null,null,null,null,null,null,null,null,null,null,"Mozambik  (MZM)"]
[null,null,null,"Namibia","Dollar","NAD","Namibia  (NAD)",null,null,null,null,null,null,null,null,null,null,null,"Namibia  (NAD)"]
[null,null,null,"Nigeria","Naira","NGN","Nigeria  (NGN)",null,null,null,null,null,null,null,null,null,null,null,"Nigeria  (NGN)"]
[null,null,null,"Nikaragua","Cordoba","NIO","Nikaragua  (NIO)",null,null,null,null,null,null,null,null,null,null,null,"Nikaragua  (NIO)"]
[null,null,null,"Norwegia","Krone","NOK","Norwegia  (NOK)",null,null,null,null,null,null,null,null,null,null,null,"Norwegia  (NOK)"]
[null,null,null,"Nepal","Rupee","NPR","Nepal  (NPR)",null,null,null,null,null,null,null,null,null,null,null,"Nepal  (NPR)"]
[null,null,null,"Selandia Baru","Dollar","NZD","Selandia Baru  (NZD)",null,null,null,null,null,null,null,null,null,null,null,"Selandia Baru  (NZD)"]
[null,null,null,"Oman","Rial","OMR","Oman  (OMR)",null,null,null,null,null,null,null,null,null,null,null,"Oman  (OMR)"]
[null,null,null,"Panama","Balboa","PAB","Panama  (PAB)",null,null,null,null,null,null,null,null,null,null,null,"Panama  (PAB)"]
[null,null,null,"Peru","Sole","PEN","Peru  (PEN)",null,null,null,null,null,null,null,null,null,null,null,"Peru  (PEN)"]
[null,null,null,"Papua Nugini","Kina","PGK","Papua Nugini  (PGK)",null,null,null,null,null,null,null,null,null,null,null,"Papua Nugini  (PGK)"]
[null,null,null,"Filipina","Peso","PHP","Filipina  (PHP)",null,null,null,null,null,null,null,null,null,null,null,"Filipina  (PHP)"]
[null,null,null,"Pakistan","Rupee","PKR","Pakistan  (PKR)",null,null,null,null,null,null,null,null,null,null,null,"Pakistan  (PKR)"]
[null,null,null,"Polandia","Zloty","PLN","Polandia  (PLN)",null,null,null,null,null,null,null,null,null,null,null,"Polandia  (PLN)"]
[null,null,null,"Paraguay","Guarani","PYG","Paraguay  (PYG)",null,null,null,null,null,null,null,null,null,null,null,"Paraguay  (PYG)"]
[null,null,null,"Qatar","Riyal","QAR","Qatar  (QAR)",null,null,null,null,null,null,null,null,null,null,null,"Qatar  (QAR)"]
[null,null,null,"China","Yuan","RMB","China  (RMB)",null,null,null,null,null,null,null,null,null,null,null,"China  (RMB)"]
[null,null,null,"Rumania","Leu","RON","Rumania  (RON)",null,null,null,null,null,null,null,null,null,null,null,"Rumania  (RON)"]
[null,null,null,"Serbia","Dinar","RSD","Serbia  (RSD)",null,null,null,null,null,null,null,null,null,null,null,"Serbia  (RSD)"]
[null,null,null,"Rusia","Ruble","RUB","Rusia  (RUB)",null,null,null,null,null,null,null,null,null,null,null,"Rusia  (RUB)"]
[null,null,null,"Rwanda","Franc","RWF","Rwanda  (RWF)",null,null,null,null,null,null,null,null,null,null,null,"Rwanda  (RWF)"]
[null,null,null,"Arab Saudi","Riyal","SAR","Arab Saudi  (SAR)",null,null,null,null,null,null,null,null,null,null,null,"Arab Saudi  (SAR)"]
[null,null,null,"Samoa","Tala","SAT","Samoa  (SAT)",null,null,null,null,null,null,null,null,null,null,null,"Samoa  (SAT)"]
[null,null,null,"Solomon (Kepulauan Solomon)","Dollar","SBD","Solomon (Kepulauan Solomon)  (SBD)",null,null,null,null,null,null,null,null,null,null,null,"Solomon (Kepulauan Solomon)  (SBD)"]
[null,null,null,"Seychelles","Rupee","SCR","Seychelles  (SCR)",null,null,null,null,null,null,null,null,null,null,null,"Seychelles  (SCR)"]
[null,null,null,"Sudan","Pound","SDG","Sudan  (SDG)",null,null,null,null,null,null,null,null,null,null,null,"Sudan  (SDG)"]
[null,null,null,"Swedia","Krono","SEK","Swedia  (SEK)",null,null,null,null,null,null,null,null,null,null,null,"Swedia  (SEK)"]
[null,null,null,"Sierra Leone","Leone","SLL","Sierra Leone  (SLL)",null,null,null,null,null,null,null,null,null,null,null,"Sierra Leone  (SLL)"]
[null,null,null,"Somalia","Shilling","SOS","Somalia  (SOS)",null,null,null,null,null,null,null,null,null,null,null,"Somalia  (SOS)"]
[null,null,null,"Suriname","Guilder","SRD","Suriname  (SRD)",null,null,null,null,null,null,null,null,null,null,null,"Suriname  (SRD)"]
[null,null,null,"Sudan Selatan","Pound","SSD","Sudan Selatan  (SSD)",null,null,null,null,null,null,null,null,null,null,null,"Sudan Selatan  (SSD)"]
[null,null,null,"Sao Tome and Principe","Dobra","STD","Sao Tome and Principe  (STD)",null,null,null,null,null,null,null,null,null,null,null,"Sao Tome and Principe  (STD)"]
[null,null,null,"El Salvador","Colon","SVC","El Salvador  (SVC)",null,null,null,null,null,null,null,null,null,null,null,"El Salvador  (SVC)"]
[null,null,null,"Suriah","Pound","SYP","Suriah  (SYP)",null,null,null,null,null,null,null,null,null,null,null,"Suriah  (SYP)"]
[null,null,null,"Swaziland","Lilageni","SZL","Swaziland  (SZL)",null,null,null,null,null,null,null,null,null,null,null,"Swaziland  (SZL)"]
[null,null,null,"Thailand","Baht","THB",{"$f":"CONCATENATE(D152,\"  (\",F152,\")\")","v":"Thailand  (THB)"},null,null,null,null,null,null,null,null,null,null,null,"Thailand  (THB)"]
[null,null,null,"Tajikistan","Somoni","TJS","Tajikistan  (TJS)",null,null,null,null,null,null,null,null,null,null,null,"Tajikistan  (TJS)"]
[null,null,null,"Turkmenistan","Manat","TMM","Turkmenistan  (TMM)",null,null,null,null,null,null,null,null,null,null,null,"Turkmenistan  (TMM)"]
[null,null,null,"Tunisia","Dinar","TND","Tunisia  (TND)",null,null,null,null,null,null,null,null,null,null,null,"Tunisia  (TND)"]
[null,null,null,"Tonga","Pa’anga","TOP","Tonga  (TOP)",null,null,null,null,null,null,null,null,null,null,null,"Tonga  (TOP)"]
[null,null,null,"Turki","Lira","TRY","Turki  (TRY)",null,null,null,null,null,null,null,null,null,null,null,"Turki  (TRY)"]
[null,null,null,"Trinidad and Tobago","Dollar","TTD","Trinidad and Tobago  (TTD)",null,null,null,null,null,null,null,null,null,null,null,"Trinidad and Tobago  (TTD)"]
[null,null,null,"Tanzania","Shilling","TZS","Tanzania  (TZS)",null,null,null,null,null,null,null,null,null,null,null,"Tanzania  (TZS)"]
[null,null,null,"Ukraina","Hryvnia","UAH","Ukraina  (UAH)",null,null,null,null,null,null,null,null,null,null,null,"Ukraina  (UAH)"]
[null,null,null,"Uganda","Shilling","UGX","Uganda  (UGX)",null,null,null,null,null,null,null,null,null,null,null,"Uganda  (UGX)"]
[null,null,null,"Ekuador","Dollar AS","USD","Ekuador  (USD)",null,null,null,null,null,null,null,null,null,null,null,"Ekuador  (USD)"]
[null,null,null,"Marshall (Kepulauan Marshall)","Dollar AS","USD","Marshall (Kepulauan Marshall)  (USD)",null,null,null,null,null,null,null,null,null,null,null,"Marshall (Kepulauan Marshall)  (USD)"]
[null,null,null,"Mikronesia (Federasi Mikronesia)","Dollar AS","USD","Mikronesia (Federasi Mikronesia)  (USD)",null,null,null,null,null,null,null,null,null,null,null,"Mikronesia (Federasi Mikronesia)  (USD)"]
[null,null,null,"Palau","Dollar AS","USD","Palau  (USD)",null,null,null,null,null,null,null,null,null,null,null,"Palau  (USD)"]
[null,null,null,"Timor Leste","Dollar AS","USD","Timor Leste  (USD)",null,null,null,null,null,null,null,null,null,null,null,"Timor Leste  (USD)"]
[null,null,null,"Uruguay","Peso","UYU","Uruguay  (UYU)",null,null,null,null,null,null,null,null,null,null,null,"Uruguay  (UYU)"]
[null,null,null,"Uzbekistan","Soum","UZS","Uzbekistan  (UZS)",null,null,null,null,null,null,null,null,null,null,null,"Uzbekistan  (UZS)"]
[null,null,null,"Venezuela","Bolivar","VEB","Venezuela  (VEB)",null,null,null,null,null,null,null,null,null,null,null,"Venezuela  (VEB)"]
[null,null,null,"Vietnam","Dong","VND","Vietnam  (VND)",null,null,null,null,null,null,null,null,null,null,null,"Vietnam  (VND)"]
[null,null,null,"Vanuatu","Vatu","VUV","Vanuatu  (VUV)",null,null,null,null,null,null,null,null,null,null,null,"Vanuatu  (VUV)"]
[null,null,null,"Afrika Tengah","Franc","XAF","Afrika Tengah  (XAF)",null,null,null,null,null,null,null,null,null,null,null,"Afrika Tengah  (XAF)"]
[null,null,null,"Chad","Franc","XAF","Chad  (XAF)",null,null,null,null,null,null,null,null,null,null,null,"Chad  (XAF)"]
[null,null,null,"Gabon","Franc","XAF","Gabon  (XAF)",null,null,null,null,null,null,null,null,null,null,null,"Gabon  (XAF)"]
[null,null,null,"Guinea Khatulistiwa","Franc","XAF","Guinea Khatulistiwa  (XAF)",null,null,null,null,null,null,null,null,null,null,null,"Guinea Khatulistiwa  (XAF)"]
[null,null,null,"Kamerun","Franc","XAF","Kamerun  (XAF)",null,null,null,null,null,null,null,null,null,null,null,"Kamerun  (XAF)"]
[null,null,null,"Republik Kongo","Franc","XAF","Republik Kongo  (XAF)",null,null,null,null,null,null,null,null,null,null,null,"Republik Kongo  (XAF)"]
[null,null,null,"Antigua dan Barbuda","Dollar","XCD","Antigua dan Barbuda  (XCD)",null,null,null,null,null,null,null,null,null,null,null,"Antigua dan Barbuda  (XCD)"]
[null,null,null,"Dominika","Dollar","XCD","Dominika  (XCD)",null,null,null,null,null,null,null,null,null,null,null,"Dominika  (XCD)"]
[null,null,null,"Grenada","Dollar","XCD","Grenada  (XCD)",null,null,null,null,null,null,null,null,null,null,null,"Grenada  (XCD)"]
[null,null,null,"Saint Kitts and Nevis","Dollar","XCD","Saint Kitts and Nevis  (XCD)",null,null,null,null,null,null,null,null,null,null,null,"Saint Kitts and Nevis  (XCD)"]
[null,null,null,"Saint Lucia","Dollar","XCD","Saint Lucia  (XCD)",null,null,null,null,null,null,null,null,null,null,null,"Saint Lucia  (XCD)"]
[null,null,null,"Saint Vincent and the Grenadines","Dollar","XCD","Saint Vincent and the Grenadines  (XCD)",null,null,null,null,null,null,null,null,null,null,null,"Saint Vincent and the Grenadines  (XCD)"]
[null,null,null,"Benin","Franc","XOF","Benin  (XOF)",null,null,null,null,null,null,null,null,null,null,null,"Benin  (XOF)"]
[null,null,null,"Burkina Faso","Franc","XOF","Burkina Faso  (XOF)",null,null,null,null,null,null,null,null,null,null,null,"Burkina Faso  (XOF)"]
[null,null,null,"Guinea Bissau","Franc","XOF","Guinea Bissau  (XOF)",null,null,null,null,null,null,null,null,null,null,null,"Guinea Bissau  (XOF)"]
[null,null,null,"Mali","Franc","XOF","Mali  (XOF)",null,null,null,null,null,null,null,null,null,null,null,"Mali  (XOF)"]
[null,null,null,"Niger","Franc","XOF","Niger  (XOF)",null,null,null,null,null,null,null,null,null,null,null,"Niger  (XOF)"]
[null,null,null,"Pantai Gading","Franc","XOF","Pantai Gading  (XOF)",null,null,null,null,null,null,null,null,null,null,null,"Pantai Gading  (XOF)"]
[null,null,null,"Senegal","Franc","XOF","Senegal  (XOF)",null,null,null,null,null,null,null,null,null,null,null,"Senegal  (XOF)"]
[null,null,null,"Togo","Franc","XOF","Togo  (XOF)",null,null,null,null,null,null,null,null,null,null,null,"Togo  (XOF)"]
[null,null,null,"Yaman","Rial","YER","Yaman  (YER)",null,null,null,null,null,null,null,null,null,null,null,"Yaman  (YER)"]
[null,null,null,"Afrika Selatan","Rand","ZAR","Afrika Selatan  (ZAR)",null,null,null,null,null,null,null,null,null,null,null,"Afrika Selatan  (ZAR)"]
[null,null,null,"Zambia","Kwacha","ZMK","Zambia  (ZMK)",null,null,null,null,null,null,null,null,null,null,null,"Zambia  (ZMK)"]
[null,null,null,"Zimbabwe","Dollar","ZWD","Zimbabwe  (ZWD)",null,null,null,null,null,null,null,null,null,null,null,"Zimbabwe  (ZWD)"]